{"text_format":"1","workbook":"xlsx","n_sheets":23,"sheets":["Cover Page","Contents","Facility Info","Operational Data","Operational Summary","Perf. Form 1 & R1 & WU1 & RM1","Energy Form 1","Performance Parameters","Permit Compliance","Improvements","Public Liasion","CO2 N2O","Residue Quality ","Water","Air (periodic)","Air (CEMS)","HCl","SO2","NOx","TOC","Particulates","CO 95% 10 min","NH3"],"not_rendered":{"charts":7,"images":4,"macros":1,"external_links":0,"defined_names":0,"comments":0,"pivot_tables":0},"unopened":[],"bounds":{"document_bytes":16777216,"sheet_cells":100000,"rows_first":2000,"rows_last":500,"rows_between":2000,"halvings":0,"cell_chars":16384,"cell_head_chars":4096},"cells_cut":0,"cells_raw":0,"read":"whole","date_system":"1900"}

{"sheet":"Cover Page","index":0,"n_rows":53,"n_cols":14,"rows_kept":53,"cut":false,"hidden":false,"merged":[[0,3,5,6],[7,1,23,8],[13,13,18,15],[28,1,28,8],[30,1,30,8],[32,1,32,8],[34,1,34,8],[48,2,48,3],[52,2,52,3],[36,1,36,8],[40,2,40,8],[42,2,42,4],[44,2,44,4],[46,2,46,3],[46,6,46,8],[48,6,48,8]]}
[]
[null,null,null,null,null,null,null,null,null,null,null,null,null,"Version 22.3  30/11/22"]
[]
[]
[]
[]
[]
[]
[]
[]
[]
[]
[null,null,null,null,null,null,null,null,null,null,null,null,null,"Notes:"]
[null,null,null,null,null,null,null,null,null,null,null,null,null,"This template may require adjustments by individual operators to meet specific reporting requirements as defined in the site Permit(s)"]
[]
[]
[]
[]
[]
[]
[]
[]
[]
[]
[]
[]
[]
[]
[null,"Annual Performance Report 2022"]
[]
[null,"Permit EPR/BV8067IL"]
[]
[null,"Newhaven Energy Recovery Facility\t\t\t\t\t\t\t"]
[]
[null,"Newhaven ERF\t\t\t\t\t\t\t"]
[]
[null,"Veolia\t\t\t\t\t\t\t"]
[]
[null,"Year:",2022.0]
[]
[null,"Address:","North Quay Road, East Sussex, BN9 0AB\t\t\t\t\t\t"]
[]
[null,"Tel: ","08453 550 550"]
[]
[null,"Email: "]
[]
[null,"Prepared by:","M Fumagall",null,null,"Position:","Environmental Technician "]
[]
[null,"Approved by:","P McMullen",null,null,"Position:","Facility Manager"]
[]
[null,"Version:",1.0]
[]
[null,"Issue Date:","2022-01-01"]

{"sheet":"Contents","index":1,"n_rows":45,"n_cols":11,"rows_kept":45,"cut":false,"hidden":false,"merged":[[3,1,3,6],[4,1,4,6],[4,10,7,14],[5,1,5,6],[6,1,6,6],[7,1,7,6],[8,1,8,6],[9,1,9,6],[10,1,10,6],[11,1,11,6],[12,1,12,6],[13,1,13,6],[14,1,14,6],[15,1,15,6],[16,1,16,6],[17,1,17,6],[18,1,18,6],[19,1,19,6],[20,1,20,6],[21,1,21,6],[22,1,22,6],[23,1,23,6],[24,1,24,6],[27,1,27,6],[28,1,28,6],[29,1,29,6],[30,1,30,6],[31,1,31,6],[41,1,41,6],[42,1,42,6],[44,0,47,9],[32,1,32,6],[35,1,35,6],[36,1,36,6],[37,1,37,6],[38,1,38,6],[39,1,39,6],[40,1,40,6]]}
[{"$f":"+'Cover Page'!$B$29","v":"Annual Performance Report 2022"},null,null,null,{"$f":"+'Cover Page'!$B$33","v":"Newhaven Energy Recovery Facility\t\t\t\t\t\t\t"}]
[]
["Contents",null,null,null,null,null,null,null,null,null,"Notes:"]
["Section","Subject",null,null,null,null,null,"Page ",null,null,"Section references and Page nos. to be inserted"]
[null,"Facility Information",null,null,null,null,null,null,null,null,"Sections and Subjects may require adjustment by individual operators to meet specific reporting requirements as defined in the sites Permit(s)"]
[null,"Operational Data"]
[null,"Operational Summary"]
[null,"Performance Form 1"]
[null,"Energy Form 1"]
[null,"Permit Compliance"]
[null,"Improvements"]
[null,"Public Liasion"]
[null,"Carbon dioxide and nitrous oxide emissions"]
[null,"Residue Quality "]
[null,"Emissions to Water"]
[null,"Emissions to Air (periodically monitored)"]
[null,"Emissions to Air (continuously monitored)"]
[null,"Hydrogen Chloride emissions"]
[null,"Sulphur Dioxdie emsissions"]
[null,"Oxides of Notrigen emissions"]
[null,"Total Organic Carbon emissions"]
[null,"Particulate Matter emissions"]
[null,"Carbon Monoxide emissions"]
[null,"Ammonia emissions"]
[]
[]
["Version Control"]
["Section","Information",null,null,null,null,null,"Date"]
[]
[]
[]
[]
[]
[]
["Distribution"]
["Copy","Name, Role",null,null,null,null,null,"No."]
[]
[]
[]
[]
[]
[]
[]
[]
["This report is required under the Industrial Emissions Directive’s Article 55(2) requirements on reporting and public information on waste incineration plants and co-incineration plants, which require the operator to produce an annual report on the functioning and monitoring of the plant and make it available to the public. "]

{"sheet":"Facility Info","index":2,"n_rows":22,"n_cols":11,"rows_kept":22,"cut":false,"hidden":false,"merged":[[4,0,17,8],[4,10,13,13],[21,0,53,8],[21,10,30,13]]}
[{"$f":"+'Cover Page'!$B$29","v":"Annual Performance Report 2022"},null,null,null,{"$f":"+'Cover Page'!$B$33","v":"Newhaven Energy Recovery Facility\t\t\t\t\t\t\t"}]
[]
["Plant Description and Design",null,null,null,null,null,null,null,null,null,"Notes:"]
[]
["The Newhaven Energy Recovery Facility processes about half the household waste in the South Downs area. That’s approximately 240,000 tonnes of waste per year. The facility converts waste unsuitable for recycling into over 19. megawatts of electrical energy - enough power to supply 25,000 homes The electricity produced is then supplied to the National Grid. The Energy Recovery Facility is the first facility of its kind to be built in the South Downs area and is designed to make it a cleaner and greener place to live.",null,null,null,null,null,null,null,null,null,"Include summary of plant design, design capacity, no. of combustion lines, electrical and heat capacity and any other general information that descibes the facility, its location and purpose "]
[]
[]
[]
[]
[]
[]
[]
[]
[]
[]
[]
[]
[]
[]
["Summary of Operational Processes and Procedures"]
[]
["Technical details of the plant:\n\nMaximum Permitted Refuse throughput – 242,000 tonnes per annum, with approximately 14 tonnes per hour burning capacity per stream\nStorage capacity – four days full plant capacity\nNumber of tipping bays – 8\nSteam output – 86 tonnes of steam per hour at 400*C and 49 bar\nFlue gas treatment – dry lime scrubber followed by high performance bag filters, discharging into a 65 metre high chimney\nEnergy produced – maximum generating capacity 19MW\n\n\nThe ERF is regulated by the Environment Agency and is certified in compliance with:\nISO 9001 : 2008\nISO 14001 : 2004, and\nOHAS 18001 : 2007",null,null,null,null,null,null,null,null,null,"Include summary of key processes and procedures such as (but not limited to); waste reception, control rooms, grate, bed and bolier, energy & heat  generation, cooling systems, residue management, emission controls, health and safety systems, maintenance"]

{"sheet":"Operational Data","index":3,"n_rows":65,"n_cols":11,"rows_kept":65,"cut":false,"hidden":false,"merged":[[3,1,3,2],[5,10,6,10],[7,1,19,1],[7,10,18,10],[9,6,16,7],[18,6,19,7],[23,1,26,1],[52,0,56,0],[54,6,56,6],[54,7,55,7],[59,6,60,6],[62,2,64,6],[28,1,29,1],[28,6,30,7],[33,1,38,1],[36,5,38,7],[42,2,42,7],[44,2,44,7],[48,2,49,7]]}
[{"$f":"+'Cover Page'!$B$29","v":"Annual Performance Report 2022"},null,null,null,{"$f":"+'Cover Page'!$B$33","v":"Newhaven Energy Recovery Facility\t\t\t\t\t\t\t"}]
[]
["Operational Data",null,null,null,null,null,null,null,null,null,"Notes:"]
["Plant Size",null,null,"tonnes pa",242000.0,"MWth",19.0,"MWe",null,null,"* - RDF to include SRF "]
["No. of combustion lines",2.0,null,"No. of Turbines:",null,1.0,null,null,null,null,"** - CHP plants only"]
[null,null,null,null,null,null,null,null,null,null,"2020 updates include;  heat in MWh, water in Litres, NCV in MJ/kg"]
["Waste types received","Unit","Q1","Q2","Q3","Q4","Year Total","%"]
["Household / Local Authority","tonnes",{"$f":"C18*0.809","v":45655.106},46502.938,45392.99,46564.422,{"$f":"SUM(C8:F8)","v":184115.456},{"$f":"IF(G8>0,G8/$G$18,\"-\")","v":0.809},null,null,"Availabiity Definition: 'the availability of a line is to be calculated by the number of hours the line reported Continuously Monitored emission levels to the Regulator through the calendar year divided by the total number of hours in that year. \nThe overall plant availability is calculated as the Mean of all lines in the plant. For clarity this includes periods of Other Than Normal Operating Conditions (OTNOC) and abnormal operation.'  \n\nRationale: The primary function of an Energy from Waste facility is the disposal of waste. It follows therefore that the availability of a plant is determined by the period of time a facility spends undertaking this activity."]
["Commercial & Industrial ",null,{"$f":"C18-C8","v":10778.894},10979.062,10717.01,10993.578,43468.544,0.191]
["Hazardous "]
["Clinical"]
["Waste wood (biomass) "]
["Refuse Derived Fuel * - H'hold/LA"]
["Refuse Derived Fuel *  - C&I"]
["Other [Please specify]"]
["Other [Please specify]"]
["Other [Please specify]"]
["Total waste received",null,56434.0,57482.0,56110.0,57558.0,{"$f":"SUM(G8:G17)","v":227584},1.0]
["Rejected Waste "]
["Unprocessed waste transferred out"]
["Total waste combusted",null,56908.0,57689.0,55828.0,58282.0,{"$f":"SUM(C21:F21)","v":228707},{"$f":"IF(G21>0,G21/$G$18,\"-\")","v":1.004934442}]
[]
["Energy Useage / Export","Unit","Q1","Q2","Q3","Q4","Year Total","KWh/te"]
["Power Generated","MWh",37870.0,38146.0,36282.0,35709.0,{"$f":"SUM(C24:F24)","v":148007},{"$f":"IF(G24>0,G24*1000/$G$21,\"-\")","v":647.1467861}]
["Power Exported",null,32960.0,33375.0,31499.0,30780.0,128614,562.3527046]
["Power Used on site",null,{"$f":"C24-C25","v":4910},4771,4783,4929,19393,84.79408151]
["Power Imported",null,0.0,0.0,0.0,1.0,1,0.004372406616]
["Parasitic Load","%",{"$f":"IF(C24>0,1-C25/(C24+C27),\"-\")","v":0.1296540797},0.1250720914,0.1318284549,0.1380565668,0.1310334577]
["Thermal Energy Produced **","MWh",null,null,null,null,"Operational "]
["Thermal Energy Exported **"]
["R1 value (if applicable)",null,null,"R1"]
[]
["Waste Disposal & Recovery","Unit","Q1","Q2","Q3","Q4","Year Total","% inputs"]
["APC Residues - produced","tonnes",1602.0,1711.0,1601.0,1627.0,{"$f":"SUM(C34:F34)","v":6541},{"$f":"IF(G34>0,G34/$G$21,\"-\")","v":0.02859991168}]
["IBA - produced",null,10188.0,10905.0,10408.0,9666.0,41167,0.1799988632]
["Metals recycling",null,1064.0,1149.0,1155.0,1217.0,4585,0.02004748434]
["Other"]
["Other"]
["Other"]
[]
["Raw Material Usage","Unit","Q1","Q2","Q3","Q4","Year Total","kg or Ltr /te"]
["Mains Water","ltrs",9585.0,10721.0,10806.0,9971.0,{"$f":"SUM(C42:F42)","v":41083},{"$f":"IF(G42>0,G42/$G$21,\"-\")","v":0.179631581}]
["Other Water","ltrs"]
["Ammonia","tonnes",69215.0,31088.0,34341.0,26491.0,{"$f":"SUM(C44:F44)","v":161135},{"$f":"IF(G44>0,G44/$G$21,\"-\")","v":0.7045477401}]
["Urea","kgs"]
["Activated Carbon","tonnes",10774.0,11822.0,10456.0,9281.0,{"$f":"SUM(C46:F46)","v":42333},{"$f":"IF(G46>0,G46/$G$21,\"-\")","v":0.1850970893}]
["Lime / hydrated lime","tonnes",526.0,611.0,615.0,522.0,2274,0.009942852646]
["Fuel oil","ltrs",21125.0,27599.0,53965.0,106276.0,208965,0.9136799486]
["Gas","cf"]
["Other"]
[]
["Summary ","Line/Unit","Q1","Q2","Q3","Q4","Year Total",null,null,"Hrs in year "]
["Availability of waste combustion by line, hrs",1.0,2052.0,2178.0,2054.0,2183.0,{"$f":"SUM(C53:F53)","v":8467},{"$f":"G53/$J$53","v":0.9665525114},null,8760.0]
[null,2.0,2160.0,2110.0,2205.0,2032.0,8507,0.9711187215]
[]
[]
[null,null,null,null,null,null,null,{"$f":"G57/$J$53","v":0}]
["Overall Availability, mean avg. of all lines, hrs",null,{"$f":"AVERAGE(C53:C54)","v":2106},2144,2129.5,2107.5,8487,{"$f":"G58/J53","v":0.9688356164}]
["Hours of turbine operations, hrs",1.0,2160.0,2184.0,2208.0,2208.0,{"$f":"SUM(C59:F59)","v":8760},{"$f":"G59/J53","v":1}]
["Hours of turbine operations, hrs"]
["Hours of heat / steam export",null,null,null,null,null,null,{"$f":"IF(B61>0,G60/J53,\"n/a\")","v":"n/a"}]
["Net Calorific Value of waste","MJ/kg",9001.0,9411.0,9563.0,9718.0,{"$f":"average(C62:F62)","v":9423.25},"-"]
["Abnormal Events","qty.",null,null,null,null,null,{"$f":"IF(G63>0,\"yes\",\"no\")","v":"no"}]
["Abnormal operation","hours",null,null,null,null,null,{"$f":"+(G64)/J53","v":0}]
["Permit Breaches","qty.",null,null,null,null,null,{"$f":"IF(G65>0,\"yes\",\"no\")","v":"no"}]

{"sheet":"Operational Summary","index":4,"n_rows":31,"n_cols":11,"rows_kept":31,"cut":false,"hidden":false,"merged":[[4,0,26,8],[4,10,13,13],[30,0,51,8],[30,10,39,13]]}
[{"$f":"+'Cover Page'!$B$29","v":"Annual Performance Report 2022"},null,null,null,{"$f":"+'Cover Page'!$B$33","v":"Newhaven Energy Recovery Facility\t\t\t\t\t\t\t"}]
[]
["Summary of Plant Operations and Maintenance during the reporting year",null,null,null,null,null,null,null,null,null,"Notes:"]
[]
["Completion of the 24 month outage strategy\n\nThere were no major component upgrades or replacements in 2022 and any maintenance was a-typical of the normal running of a waste incineration unit",null,null,null,null,null,null,null,null,null,"Include summary of key operational and/or mainteanance activity undertaken in the year, such as any major component upgrades and/or replacements "]
[]
[]
[]
[]
[]
[]
[]
[]
[]
[]
[]
[]
[]
[]
[]
[]
[]
[]
[]
[]
[]
[]
[]
["Summary of Residue Handling for the reporting year"]
[]
["The Incinerator Bottom Ash (IBA) is transported via railway to an aggregate processing facility situated in Brentford. The IBA is reprocessed into a number of different graded aggregates, ferrous and non ferrous metal products, which are then utilised in the construction and metal industry.\n\nFerrous metals removed during on site processing of IBA are forwarded to a metals recycling facility.  The metals are separated into individual fractions, and are sent on for utilisation in the metal industry.\n\nThe fine particulate matter, known as Air Pollution Control Residue (APCr), is removed from the process by a fabric filter. The APCr is sent to Empire, another Veolia site located in Aldridge, West Midlands where it is used to neutralise spent acid wastes before final disposal. \n\nAll wastes generated by the activities is treated in accordance with the waste hierarchy referred to in Article 4 of the Waste Framework Directive.  All avenues for waste processing are continuously monitored and reviewed, any opportunities to improve on the current methods would be implemented at the earliest opportunity  ",null,null,null,null,null,null,null,null,null,"Include in here a summary of residue handling regimes and destinations "]

{"sheet":"Perf. Form 1 & R1 & WU1 & RM1","index":5,"n_rows":54,"n_cols":10,"rows_kept":54,"cut":false,"hidden":false,"merged":[[12,0,12,1],[13,0,13,1],[13,2,13,3],[13,4,13,5],[13,6,13,7],[13,8,13,9],[14,8,14,9],[14,0,14,3],[15,0,15,1],[15,2,15,3],[15,4,15,5],[15,6,15,7],[15,8,15,9],[16,0,16,9],[18,4,18,5],[18,6,18,7],[17,0,17,1],[17,2,17,3],[17,4,17,5],[17,6,17,7],[17,8,17,9],[18,2,18,3],[18,8,18,9],[20,6,20,7],[20,8,20,9],[18,0,18,1],[19,0,19,1],[19,2,19,3],[19,4,19,5],[19,6,19,7],[19,8,19,9],[20,0,20,1],[22,0,22,3],[22,4,22,5],[22,6,22,7],[22,8,22,9],[23,4,23,5],[23,6,23,7],[23,8,23,9],[23,0,23,3],[25,0,25,9],[26,0,28,9],[31,0,31,3],[31,7,31,8],[32,4,32,5],[32,7,32,8],[32,0,32,3],[33,0,33,3],[33,4,33,5],[33,7,33,8],[34,0,34,3],[34,4,34,5],[34,7,34,8],[36,7,36,8],[37,7,37,8],[35,0,35,3],[35,4,35,5],[35,7,35,8],[36,0,36,3],[36,4,36,5],[37,0,37,3],[37,4,37,5],[49,0,49,9],[50,0,51,9],[38,0,38,9],[39,0,40,9],[43,0,43,1],[43,2,43,9],[45,0,45,1],[46,0,46,1],[47,0,47,1],[2,0,2,4],[2,6,2,8],[3,1,3,4],[5,3,5,4],[5,6,5,7],[8,0,8,1],[8,2,8,3],[10,6,10,7],[10,8,10,9],[8,4,8,5],[8,6,8,7],[8,8,8,9],[9,0,9,9],[10,0,10,1],[10,2,10,3],[10,4,10,5],[12,4,12,5],[12,6,12,7],[11,0,11,1],[11,2,11,3],[11,4,11,5],[11,6,11,7],[11,8,11,9],[12,2,12,3],[12,8,12,9],[14,4,14,5],[14,6,14,7],[20,2,20,3],[20,4,20,5],[21,0,21,1],[21,2,21,3],[21,4,21,5],[21,6,21,7],[21,8,21,9]]}
[{"$f":"+'Cover Page'!C39","v":2022}," Annual Reporting Performance Form 1"]
[]
[{"$f":"+'Cover Page'!B31","v":"Permit EPR/BV8067IL"},null,null,null,null,"Operator: ",{"$f":"+'Cover Page'!B37:I37","v":""}]
["Facility:",{"$f":"+'Cover Page'!B33:I33","v":"Newhaven Energy Recovery Facility\t\t\t\t\t\t\t"},null,null,null,"Form:","Performance 1"]
[]
["Reporting  Period from: ",null,null,"01.01.2022",null,"to:","31.01.2022"]
[]
[{"$f":"+A1","v":2022},"Annual Reporting of Waste Disposal and Recovery"]
["Waste Description",null,"Disposal Route(s)",null,"Disposal Tonnes",null,"Recovery Tonnes",null,"% / tonne of waste incinerated"]
["1) Hazardous Wastes"]
["APC Residues",null,"D9",null,{"$f":"'Operational Data'!G34","v":6541},null,null,null,{"$f":"IF((E11+G11)>0,(E11+G11)/'Operational Data'!$G$18, \"-\")","v":0.02874103628}]
["IBA"]
[]
[]
["Total Hazardous Waste",null,null,null,{"$f":"SUM(E11:F14)","v":6541},null,{"$f":"SUM(G11:H14)","v":0},null,{"$f":"IF((E15+G15)>0,(E15+G15)/'Operational Data'!$G$18, \"-\")","v":0.02874103628}]
[]
["2) Non-Hazardous Wastes"]
["IBA",null,"R5",null,null,null,{"$f":"'Operational Data'!G35","v":41167},null,{"$f":"IF((E18+G18)>0,(E18+G18)/'Operational Data'!$G$18, \"-\")","v":0.1808870571}]
["Ferrous Metal",null,"R4",null,null,null,{"$f":"'Operational Data'!G36","v":4585},null,{"$f":"IF((E19+G19)>0,(E19+G19)/'Operational Data'!$G$18, \"-\")","v":0.02014640748}]
["Process Water"]
[]
[]
["Total Non-Hazardous Waste",null,null,null,{"$f":"SUM(E18:F22)","v":0},null,{"$f":"SUM(G18:H22)","v":45752},null,{"$f":"IF((E23+G23)>0,(E23+G23)/'Operational Data'!$G$18, \"-\")","v":0.2010334646}]
["TOTAL WASTE",null,null,null,{"$f":"E23+E15","v":6541},null,{"$f":"G23+15","v":45767},null,{"$f":"IF((E24+G24)>0,(E24+G24)/'Operational Data'!$G$18, \"-\")","v":0.2298404106}]
[]
["Operator’s comments :"]
["The APC residue is utilised at a specialist hazardous waste treatment facility where it is re-used to neutralise acid wastes before final disposal"]
[]
[]
[]
[{"$f":"+A1","v":2022},"Annual Reporting of Water and Other Raw Material Usage"]
["Raw Material",null,null,null,"Usage",null,"Unit","Specific Useage",null,"Unit"]
["Mains Water",null,null,null,{"$f":"+'Operational Data'!G42","v":41083},null,"m3",{"$f":"IF(E33>0,E33/'Operational Data'!$G$21,\"-\")","v":0.179631581},null,"m3/te"]
["Total Water",null,null,null,{"$f":"+'Operational Data'!G43+'Operational Data'!G42","v":41083},null,"m3",{"$f":"IF(E34>0,E34/'Operational Data'!$G$21,\"-\")","v":0.179631581},null,"m3/te"]
["Urea / Ammonia",null,null,null,{"$f":"+'Operational Data'!G44*1000","v":161135000},null,"kg",{"$f":"IF(E35>0,E35/'Operational Data'!$G$21,\"-\")","v":704.5477401},null,"kg/te"]
["Activated Carbon",null,null,null,{"$f":"+'Operational Data'!G46*1000","v":42333000},null,"kg",{"$f":"IF(E36>0,E36/'Operational Data'!$G$21,\"-\")","v":185.0970893},null,"kg/te"]
["Lime / hydrated lime / Sodium Bicarb.",null,null,null,{"$f":"+'Operational Data'!G47*1000","v":2274000},null,"kg",{"$f":"IF(E37>0,E37/'Operational Data'!$G$21,\"-\")","v":9.942852646},null,"kg/te"]
[]
["Operator’s comments :"]
[]
[]
[]
[{"$f":"+A31","v":2022},"Annual Reporting of other performance indicators "]
["Parameter",null,"Results by Line"]
[null,null,"A1","A2","A3","A4","A5",null,"Turbine 1","Turbine 2"]
["Operating hours for the year, hours",null,{"$f":"'Operational Data'!G53","v":8467},{"$f":"'Operational Data'!G54","v":8507},null,null,null,null,{"$f":"'Operational Data'!G59","v":8760}]
["Number of periods of abnormal operation, qty.",null,0.0,0.0]
["Cumulative hours of abnormal operation for this year, hours",null,0.0,0.0]
[]
["Operator’s comments :"]
[]
[]
[]
["Signed: ",null,null,null,null,null,"Date:","11th of January 2023"]

{"sheet":"Energy Form 1","index":6,"n_rows":29,"n_cols":8,"rows_kept":29,"cut":false,"hidden":false,"merged":[[2,6,2,8],[4,1,4,4],[6,3,6,4],[6,6,6,7],[8,0,8,2],[8,3,8,4],[8,6,8,8],[10,6,10,8],[11,6,11,8],[12,6,12,8],[13,6,13,8],[14,6,14,8],[15,6,15,8],[9,0,9,2],[9,3,9,4],[9,6,9,8],[10,0,10,2],[10,3,10,4],[11,0,11,2],[11,3,11,4],[15,0,15,2],[17,0,17,8],[18,0,24,8],[12,0,12,2],[12,3,12,4],[13,0,13,2],[13,3,13,4],[14,0,14,2],[14,3,14,4],[15,3,15,4]]}
[{"$f":"+'Cover Page'!C39","v":2022}," Annual Reporting of Energy Usage/Export"]
[]
[{"$f":"+'Cover Page'!B31","v":"Permit EPR/BV8067IL"},null,null,null,null,"Operator: ",{"$f":"+'Cover Page'!B37:I37","v":""}]
[]
["Facility:",{"$f":"+'Cover Page'!B33:I33","v":"Newhaven Energy Recovery Facility\t\t\t\t\t\t\t"},null,null,null,"Form:","Energy 1"]
[]
["Reporting  Period from: ",null,null,{"$f":"+'Perf. Form 1 & R1 & WU1 & RM1'!D6:E6","v":"01.01.2022"},null,"to:",{"$f":"+'Perf. Form 1 & R1 & WU1 & RM1'!G6:H6","v":"31.01.2022"}]
[]
["Energy Source",null,null,"Energy Usage",null,"Unit","Specific Useage (KWh/tonne incinerated"]
["Electricity Produced",null,null,{"$f":"+'Operational Data'!G24","v":148007},null,"MWh",{"$f":"+'Operational Data'!H24","v":647.1467861}]
["Electricity Imported   ",null,null,{"$f":"+'Operational Data'!G27","v":1},null,"MWh",{"$f":"+'Operational Data'!H27","v":0.004372406616}]
["Electricity Exported",null,null,{"$f":"+'Operational Data'!G25","v":128614},null,"MWh",{"$f":"+'Operational Data'!H25","v":562.3527046}]
["Gas Oil",null,null,null,null,"tonnes"]
["Steam/hot water exported",null,null,{"$f":"+'Operational Data'!G30","v":""},null,"GWh",{"$f":"+'Operational Data'!H30","v":""}]
[]
[]
[]
["Operator’s comments :"]
[]
[]
[]
[]
[]
[]
[]
[]
[]
[]
["Signed: ",null,null,null,null,null,"Date:","18th of January 2023"]

{"sheet":"Performance Parameters","index":7,"n_rows":19,"n_cols":8,"rows_kept":19,"cut":false,"hidden":false,"merged":[[10,0,10,4],[11,0,11,4],[11,6,11,9],[13,0,14,9],[2,6,2,8],[4,1,4,4],[6,3,6,4],[6,6,6,7],[9,0,9,4],[9,6,9,9],[10,6,10,9]]}
[{"$f":"+'Cover Page'!C39","v":2022}," Annual Reporting of Performance Parameters"]
[]
[{"$f":"+'Cover Page'!B31","v":"Permit EPR/BV8067IL"},null,null,null,null,"Operator: ","Veolia South Downs Ltd"]
[]
["Facility:",{"$f":"'Cover Page'!B35","v":"Newhaven ERF\t\t\t\t\t\t\t"},null,null,null,"Form:","N/A"]
[]
["Reporting  Period from: ",null,null,"01.01.2022",null,"to:","31.12.2022"]
[]
[]
["Parameter",null,null,null,null,null,"Units"]
["Mass of Bottom Ash Produced",null,null,null,null,{"$f":"'Operational Data'!G35/'Operational Data'!G18","v":0.1808870571},"kg / tonne of waste incinerated"]
["Mass of APC residues produced",null,null,null,null,{"$f":"'Operational Data'!G34/'Operational Data'!G18","v":0.02874103628},"kg / tonne of waste incinerated"]
[]
["Operator's comments:\nThis form is submitted to the Environment Agency in accordance with Permit Condition 4.2.2 and Table S4.3"]
[]
[]
[]
[]
["Signed: ",null,null,null,null,null,"Date:","18th January 2023"]

{"sheet":"Permit Compliance","index":8,"n_rows":34,"n_cols":12,"rows_kept":34,"cut":false,"hidden":false,"merged":[[9,2,9,4],[9,5,9,8],[10,0,10,1],[10,2,10,4],[9,0,9,1],[11,0,11,1],[11,2,11,4],[11,5,11,8],[12,0,12,1],[12,2,12,4],[13,2,13,4],[13,5,13,8],[14,0,14,1],[14,2,14,4],[29,4,29,6],[29,7,29,9],[27,1,27,3],[27,4,27,6],[27,7,27,9],[28,1,28,3],[28,4,28,6],[28,7,28,9],[29,1,29,3],[32,4,32,6],[32,7,32,9],[33,4,33,8],[30,1,30,3],[30,4,30,6],[30,7,30,9],[31,1,31,3],[31,4,31,6],[31,7,31,9],[32,1,32,3],[8,0,8,1],[13,0,13,1],[14,5,14,8],[15,0,15,1],[15,2,15,4],[15,5,15,8],[16,0,16,1],[16,2,16,4],[7,0,7,1],[7,2,7,8],[8,2,8,4],[8,5,8,8],[8,11,17,14],[10,5,10,8],[12,5,12,8],[16,5,16,8],[18,0,18,10],[19,1,19,3],[19,4,19,6],[19,7,19,9],[20,4,20,6],[20,7,20,9],[20,1,20,3],[21,1,21,3],[21,4,21,6],[21,7,21,9],[22,1,22,3],[22,4,22,6],[22,7,22,9],[23,1,23,3],[23,4,23,6],[23,7,23,9],[24,1,24,3],[24,4,24,6],[24,7,24,9],[26,0,26,10]]}
[{"$f":"+'Cover Page'!$B$29","v":"Annual Performance Report 2022"},null,null,null,{"$f":"+'Cover Page'!$B$33","v":"Newhaven Energy Recovery Facility\t\t\t\t\t\t\t"}]
[]
["Summary of Permit Compliance"]
[]
["Compliance with permit limits for continuously monitored pollutants"]
[]
["The plant met its emission limits as shown in the table below:"]
["Substance",null,"Percentage time compliant during operation",null,null,null,null,null,null,null,null,"Notes:"]
[null,null,"Half-hourly limit",null,null,"Daily limit",null,null,null,null,null,"Report to 2 decimal places, i.e. xx.xx%\n\nPlease provide a brief summary of each notification or non-compliance in the table (rather than just referring to notifications that were sent to the Regulator).  \n\n"]
["Particulates",null,1.0,null,null,1.0]
["Oxides of nitrogen",null,1.0,null,null,1.0]
["Sulphur dioxide",null,1.0,null,null,1.0]
["Carbon monoxide",null,"100.00% 95% of 10-min averages",null,null,1.0]
["Total organic carbon",null,1.0,null,null,1.0]
["Hydrogen chloride",null,1.0,null,null,1.0]
["Hydrogen fluoride",null,1.0,null,null,1.0]
[]
[]
["Summary of any notifications or non-compliances under the permit"]
["Date","Summary of notification or non-compliance [including Line/Reference]",null,null,"Reason ",null,null,"Measures taken to prevent reoccurrence"]
["n/a","n/a",null,null,"n/a",null,null,"n/a"]
[]
[]
[]
[]
[]
["Summary of any complaints received and actions to taken to resolve them."]
["Date","Summary of complaint [including Line/Reference]",null,null,"Reason *",null,null,"Measures taken to prevent reoccurrence"]
["2022-12-03","76434 - Odour complaint at 06:30",null,null,"Unsubstantiated ",null,null,"Unsubstantiated "]
[]
[]
[]
[]
[null,null,null,null,"* including whether substantiated by the operator or the EA"]

{"sheet":"Improvements","index":9,"n_rows":39,"n_cols":5,"rows_kept":39,"cut":false,"hidden":false,"merged":[[4,0,4,8],[5,0,13,8],[15,0,15,8],[16,0,24,8],[26,0,26,8],[27,0,35,8],[37,0,37,8],[38,0,47,8]]}
[{"$f":"+'Cover Page'!$B$29","v":"Annual Performance Report 2022"},null,null,null,{"$f":"+'Cover Page'!$B$33","v":"Newhaven Energy Recovery Facility\t\t\t\t\t\t\t"}]
[]
["Summary of Plant Improvements"]
[]
["Summary of any efficiency improvements that have been completed within the year."]
["Streamlining and planned preventative maintenance of current assets"]
[]
[]
[]
[]
[]
[]
[]
[]
[]
["Summary of any permit improvement conditions that have been completed within the year and the resulting environmental benefits."]
["There are 3 new Improvement Conditions as a result of the permit variation in 2022. Tests are currently being carried out for the following requirements: 1. The operator shall submit a report to the Environmental Agency on whether waste feed to the plant can be proven to have a low stable mercury content. Due: 30/09/2023 2. The operator shall submit a report to the Environmental agency on whether dioxin emissions to air are stable. Due: 30/09/2023 3. The operator shall perform a study to determine the extent to which the operation of the current systems in place at the plant to minimise NOx emmisions can be further optomised such that emissions are reduced as far as possible below 180mg/Nm3 as a daily average, without significantly increasing emissions of other pollutants or having a significant negative effect on plant operation, reliability or bottom ash quality. Due: 30/09/2023"]
[]
[]
[]
[]
[]
[]
[]
[]
[]
["Summary of any changes to the plant or operating techniques which required a variation to the permit and a summary of the resulting environmental impact."]
["A new permit variation has been received in 2022 to satisfy the requirements of the new IED BREF for Energy from Waste plants. New daily ELVs to come into effect from 03/12/2023. See permit for details.”"]
[]
[]
[]
[]
[]
[]
[]
[]
[]
["Summary of any other improvements made to the plant or planned to be made and a summary of the resulting environmental benefits."]
["Continuation of 24 month outage strategy resulting in higher availability and less waste diversion to Landfill\n\nThe Facility recovers energy with a high level of energy efficiency, this is evident by the performance of the plant, and the R1 status awarded to the Facility each year.  The efficiency of the Facility is continuously being reviewed, if a new viable technology or technique emerges that would enable the Plant to increase it's performance further, it would be implemented at the next available oppourtunity.\n\nEvery practicable opportunity to use the heat rejected at the steam condensers for beneficial local use is investigated.  To date no cost effective or practicable options have become available.  The site will continue to identify all possible opportunities, and investigate the practicalities of its installation.  All viable developments will be implemented at the earliest opportunity.\n\nRaw materials used on site are trended by the Facility Manager and recorded on the company intranet so that benchmarks are visible to the group. These Key Performance Indicators (KPIs) are reviewed daily, weekly, monthly and annually. If any opportunities arise which would result in reduction or avoidance in raw material usage, they will be implemented at the earliest convenience.  There are no improvements to be made at this time regarding the use of raw materials at the site.\n\n\n                                                                        "]

{"sheet":"Public Liasion","index":10,"n_rows":29,"n_cols":5,"rows_kept":29,"cut":false,"hidden":false,"merged":[[10,0,11,1],[12,0,13,1],[16,0,16,1],[17,0,18,1],[19,0,20,1],[21,0,22,1],[23,0,24,1],[25,0,26,1],[5,0,5,1],[5,2,5,8],[6,0,7,1],[6,2,7,8],[8,0,9,1],[8,2,9,8],[10,2,11,8],[25,2,26,8],[28,0,28,8],[12,2,13,8],[15,0,15,8],[16,2,16,8],[17,2,18,8],[19,2,20,8],[21,2,22,8],[23,2,24,8]]}
[{"$f":"+'Cover Page'!$B$29","v":"Annual Performance Report 2022"},null,null,null,{"$f":"+'Cover Page'!$B$33","v":"Newhaven Energy Recovery Facility\t\t\t\t\t\t\t"}]
[]
["Details of Public & Stakeholder Liasion"]
[]
["Summary of events held during the reporting year."]
["Date",null,"Description"]
["n/a",null,"Veolia Wonder Day: Planned for 2022. Cancelled due to a tube leak. "]
[]
[]
[]
[]
[]
[]
[]
[]
["List of events planned for next year"]
["Date",null,"Description"]
["TBC",null,"Veolia Wonder Day: Veolia invites visitors from across the county to come along and discover what happens at our waste management facilities. Behind the scenes tours and activities offer an insight into the entire integrated network of our recycling and recovery operations and the importance of disposing of your waste properly."]
[]
[]
[]
[]
[]
[]
[]
[]
[]
[]
["If you wish to be involved in the public liasion programme, please contact _________________"]

{"sheet":"CO2 N2O","index":11,"n_rows":22,"n_cols":5,"rows_kept":22,"cut":false,"hidden":false,"merged":[[17,4,17,14],[19,1,19,2],[19,4,19,14],[22,0,23,2],[17,1,17,2],[4,0,4,2],[8,1,8,2],[8,4,8,14],[10,0,10,2],[12,1,12,2],[12,4,12,14],[15,0,15,2]]}
[{"$f":"+'Cover Page'!$B$29","v":"Annual Performance Report 2022"},null,{"$f":"+'Cover Page'!$B$33","v":"Newhaven Energy Recovery Facility\t\t\t\t\t\t\t"}]
[]
["Carbon dioxide emissions and biogenic content of waste inputs",null,null,null,"Notes:"]
[]
["Carbon dioxide emissions (all types of plant)"]
["Annual mass of carbon dioxide released","x tonnes ",{"$f":"115473.35+108810.94","v":224284.29}]
["Annual mass of carbon dioxide released per tonne of waste burned","x tonnes ",{"$f":"C6/'Operational Data'!G21","v":0.9806621135}]
["Annual mass of carbon dioxide released per MWh of energy exported","x tonnes ",{"$f":"C6/'Operational Data'!G25","v":1.743855957}]
["Description of how annual carbon dioxide mass emission has been calculated","CEM data",null,null,"Note 1: Where available, data from CO2 CEMS should be used. Otherwise, where no CEMS data is available, a suitable emissions factor should be used based on the tonnage of waste burned e.g.0.992 tCO2/t waste as per Tolvik report 2021, or other justified emissions factor  - refer to embedded Environment Agency guidance note above or updated version for suitable descriptive text."]
[]
["Nitrous oxide emissions (only plants which use ammonia or urea to abate NOx emissions)"]
["Annual mass emissions of nitrous oxide","x tonnes ",{"$f":"  7.7+1.0032","v":8.7032}]
["Description of how annual nitrous oxide mass emission has been calculated","CEM data",null,null,"Note 2: Where available, data from N2O CEMS should be used, or if no CEMS data is available, from periodic monitoring. Otherwise, a suitable emissions factor should be used based on the tonnage of waste burned e.g. 0.0981 kgN20/t waste as per 2021 Pollution Inventory data for plants with urea-based SNCR - refer to embedded Environment Agency guidance note above or updated version for suitable descriptive text."]
["Total annual carbon dioxide and nitrous oxide emissions as carbon dioxide equivalent (whereby 1 t nitrous oxide is equivalent to 298 t carbon dioxide)","x tonnes CO2e",{"$f":"(C12*298)+C6","v":226877.8436}]
[]
["Biogenic fraction of the waste and biogenic CO2 emissions (only plants burning residual municipal waste, refuse derived fuel or solid recovered fuel)"]
["Yearly average biogenic percentage of the waste by net calorific value (NCV)",0.518,{"$f":"'Operational Data'!G21*0.518","v":118470.226}]
["Description of how biogenic NCV percentage has been calculated or estimated","Combused waste multiplied by the WRAP data for residual waste of 51.8%",null,null,"Note 3: Where available, data from waste sampling should be used; otherwise, an estimated figure with justification can be used, or a figure assumed on the basis of a national average e.g. 2017 WRAP data for residual waste of 51.8% biogenic energy content - refer to embedded Environment Agency guidance note above or updated version for suitable descriptive text, quoting standards where relevant. "]
["Percentage of total carbon dioxide emissions arising from biogenic waste",0.518,118470.0]
["Description of how percentage biogenic carbon dioxide emissions have been calculated","Wrap data for residual waste of 51.8%",null,null,"Note 4: Examples include direct measurement via C14 method or BIOMA software - refer to embedded Environment Agency guidance note above or updated version for suitable descriptive text, quoting standards where relevant. Otherwise, as an approximation (and in lieu of any more accurate metrics which may be developed in future), the measured or estimated biogenic fraction by net calorific value can be assumed to be the same as the biogenic CO2 fraction of the total CO2 emissions from the plant. "]
[]
["Comments:"]

{"sheet":"Residue Quality ","index":12,"n_rows":36,"n_cols":6,"rows_kept":36,"cut":false,"hidden":false,"merged":[[5,0,6,6],[7,0,8,6],[9,0,10,6],[12,0,12,6],[13,0,13,1],[13,2,13,6],[14,2,15,6],[16,2,17,6],[18,2,19,6],[20,2,21,6],[22,2,23,6],[26,0,26,6],[27,2,28,2],[27,3,27,6],[30,0,30,1],[31,0,31,1],[32,0,32,1],[14,0,15,1],[16,0,17,1],[18,0,19,1],[20,0,21,1],[22,0,23,1],[27,0,28,1],[29,0,29,1],[31,3,31,4],[32,3,32,4],[34,0,34,6],[35,0,40,6],[28,3,28,4],[28,5,28,6],[29,3,29,4],[29,5,29,6],[30,3,30,4],[30,5,30,6],[31,5,31,6],[32,5,32,6]]}
[{"$f":"+'Cover Page'!$B$29","v":"Annual Performance Report 2022"},null,null,null,{"$f":"+'Cover Page'!$B$33","v":"Newhaven Energy Recovery Facility\t\t\t\t\t\t\t"}]
[]
["Residue Quality Monitoring Requirements"]
[]
["Summary of monitoring undertaken and compliance"]
["IBA - Two samples per month are analysed under the ESA protocol\nOne sample per quarter analysed for Permit requirements"]
[]
["APCr - One sample per quarter analysed for Permit requirements"]
[]
[]
[]
[]
["Commentary on any specific events"]
["Date & Event",null,"Description"]
[]
[]
[]
[]
[]
[]
[]
[]
[]
[]
[]
[]
["Residue Quality Monitoring Results"]
["Parameter (unit) ",null,"Limit","Normal Operation "]
[null,null,null,"Bottom ash  ",null,"APC Residues"]
["Loss on Ignition (average %)",null,"<5%","-"]
["Total Organic Carbon (average %)",null,"<3%",{"$f":"(0.9+0.7+0.7+0.55)/4","v":0.7125}]
["No. of Assessments Undertaken",null,"---",4.0,null,4.0]
["No. of Hazardous Results",null,"---",0.0]
[]
["Comments :"]
["TOC result is average of quarterly values"]

{"sheet":"Water","index":13,"n_rows":23,"n_cols":9,"rows_kept":23,"cut":false,"hidden":false,"merged":[[14,0,15,1],[16,0,17,1],[18,0,19,1],[5,0,6,8],[7,0,8,8],[9,0,10,8],[12,0,12,8],[13,0,13,1],[13,2,13,8],[14,2,15,8],[16,2,17,8],[18,2,19,8],[21,0,21,8],[22,0,22,2],[22,3,22,4],[23,0,23,2],[23,3,23,4],[27,0,27,2],[28,0,28,2],[28,3,28,4],[29,0,29,2],[29,3,29,4],[24,0,24,2],[24,3,24,4],[25,0,25,2],[25,3,25,4],[26,0,26,2],[26,3,26,4],[27,3,27,4]]}
[{"$f":"+'Cover Page'!$B$29","v":"Annual Performance Report 2022"},null,null,null,{"$f":"+'Cover Page'!$B$33","v":"Newhaven Energy Recovery Facility\t\t\t\t\t\t\t"}]
[]
["Emissions to Water"]
[]
["Summary of monitoring undertaken and compliance"]
["Zero discharge to sewer in 2022"]
[]
[]
[]
[]
[]
[]
["Commentary on any specific events"]
["Date & Event",null,"Description"]
[]
[]
[]
[]
[]
[]
[]
["Emissions to Water / Sewer"]
["Parameter",null,null,"Monitoring Frequency",null,"Limit","Target","Max.","Average"]

{"sheet":"Air (periodic)","index":14,"n_rows":40,"n_cols":13,"rows_kept":40,"cut":false,"hidden":false,"merged":[[35,0,35,1],[36,0,36,1],[37,0,37,1],[28,0,28,1],[29,0,29,1],[30,0,30,1],[31,0,31,1],[32,0,32,1],[33,0,33,1],[34,0,34,1],[5,0,6,9],[5,12,8,15],[8,0,8,9],[9,2,10,2],[9,3,10,4],[9,5,9,9],[9,12,11,15],[11,3,11,4],[9,0,10,1],[11,0,11,1],[12,0,12,1],[12,3,12,4],[13,0,13,1],[13,3,13,4],[14,3,14,4],[14,0,14,1],[15,0,15,1],[16,0,16,1],[17,0,17,1],[18,0,18,1],[19,0,19,1],[20,0,20,1],[15,3,15,4],[16,3,16,4],[17,3,17,4],[18,3,18,4],[19,3,19,4],[20,3,20,4],[21,3,21,4],[21,0,21,1],[22,0,22,1],[23,0,23,1],[24,0,24,1],[25,0,25,1],[26,0,26,1],[27,0,27,1],[22,3,22,4],[23,3,23,4],[24,3,24,4],[25,3,25,4],[26,3,26,4],[27,3,27,4],[28,3,28,4],[36,3,36,4],[37,3,37,4],[38,0,38,9],[39,0,40,9],[29,3,29,4],[30,3,30,4],[31,3,31,4],[32,3,32,4],[33,3,33,4],[34,3,34,4],[35,3,35,4]]}
[{"$f":"+'Cover Page'!$B$29","v":"Annual Performance Report 2022"},null,null,null,{"$f":"+'Cover Page'!$B$33","v":"Newhaven Energy Recovery Facility\t\t\t\t\t\t\t"}]
[]
["Emissions to Air (periodically monitored)"]
[]
["Summary of monitoring undertaken, standards used and compliance",null,null,null,null,null,null,null,null,null,null,null,"Notes:"]
["Monitoring undertaken in accordance with the standards listed in the Permit, compliance was maintained for 100% of 2022",null,null,null,null,null,null,null,null,null,null,null,"Template may require adjustment for any bespoke monitoring requirements of permit. "]
[]
[]
["Results of emissions to air that are periodically monitored"]
["Substance",null,"Ref. Period","Emission Limit Value",null,"Average",null,null,null,null,null,null,"User to add additional tables as necessary, depending on whether quarterly or bi-annual reporting is required for the compliance year"]
[null,null,null,null,null,"A1","A2","A3","A4","A5"]
["Hydrogen fluoride",null,"1 hr","2 mg/m3",null,0.052,0.101]
["Cd and Th and their compounds",null,"6-8hrs","0.05 mg/m3",null,0.0031,0.001195]
["Hg and its compounds",null,"6-8hrs","0.05 mg/m3",null,0.0016,0.00112]
["Sb, As, Pb, Cr, Co, Cu, Mn, Ni, V and their compounds",null,"6-8hrs","0.5 mg/m3",null,0.0657,0.034]
["Dioxins & Furans (I-TEQ)",null,"6-8hrs","0.1 ng/m3",null,0.028,0.00345]
["PCBs (WHO-TEQ Humans / Mammals)",null,"6-8hrs","None set ng/m3",null,0.0275,0.0035]
["PCBs (WHO-TEQ Fish)",null,"6-8hrs","None set ng/m3",null,0.0255,0.0032]
["PCBs (WHO-TEQ Birds)",null,"6-8hrs","None set ng/m3",null,0.0405,0.0069]
["Dioxins & Furans (WHO-TEQ Humans / Mammals)",null,"6-8hrs","None set ng/m3",null,0.0015,2.54E-4]
["Dioxins & Furans (WHO-TEQ Fish)",null,"6-8hrs","None set ng/m3",null,0.013548,1.35E-5]
["Dioxins & Furans (WHO-TEQ Birds)",null,"6-8hrs","None set ng/m3",null,0.00414,0.00101]
["Anthanthrene",null,"6-8hrs","None set µg/m3",null,0.00125,0.0014]
["Benzo(a)anthracene",null,"6-8hrs","None set µg/m3",null,0.0016,0.00155]
["Benzo(a)pyrene",null,"6-8hrs","None set µg/m3",null,0.00125,0.0067]
["Benzo(b)fluoranthene",null,"6-8hrs","None set µg/m3",null,0.0038,0.0034]
["Benzo(b)naptho(2,1-d) thiophene",null,"6-8hrs","None set µg/m3",null,{"$f":"0.0037+0.015","v":0.0187},{"$f":"(0.0036+0.01)/2","v":0.0068}]
["Benzo(c)phenanthrene",null,"6-8hrs","None set µg/m3",null,{"$f":"(0.0006+0.0017)/2","v":0.00115},{"$f":"(0.0006+0.0016)","v":0.0022}]
["Benzo(ghi)perylene",null,"6-8hrs","None set µg/m3",null,{"$f":"(0.0019+0.0039)/2","v":0.0029},{"$f":"(0.0019+0.0024)/2","v":0.00215}]
["Benzo(k)fluoranthene",null,"6-8hrs","None set µg/m3",null,0.00125,0.0014]
["Cholanthrene",null,"6-8hrs","None set µg/m3",null,{"$f":"(0.0006+0.0013)/2","v":0.00095},{"$f":"(0.0006+0.0016)/2","v":0.0011}]
["Chrysene",null,"6-8hrs","None set µg/m3",null,{"$f":"(0.0033+0.0044)/2","v":0.00385},{"$f":"(0.0026+0.0019)/2","v":0.00225}]
["Cyclopenta(cd)pyrene",null,"6-8hrs","None set µg/m3",null,{"$f":"(0.0006+0.0013)/2","v":0.00095},{"$f":"(0.0006+0.0016)/2","v":0.0011}]
["Dibenzo(ai)pyrene",null,"6-8hrs","None set µg/m3",null,0.00095,0.0011]
["Dibenzo(ah)anthracene",null,"6-8hrs","None set µg/m3",null,0.00095,0.0011]
["Fluoranthene",null,"6-8hrs","None set µg/m3",null,0.1121,0.116]
["Indeno(123-cd) pyrene",null,"6-8hrs","None set µg/m3",null,0.0031,0.0025]
["Naphthalene",null,"6-8hrs","None set µg/m3",null,7.5141,0.7475]
["Comments :"]
["<LOD reported as LOD"]

{"sheet":"Air (CEMS)","index":15,"n_rows":28,"n_cols":16,"rows_kept":28,"cut":false,"hidden":false,"merged":[[11,5,11,6],[11,7,11,8],[11,9,11,10],[11,11,11,12],[13,0,14,0],[26,0,26,12],[28,0,29,12],[5,0,6,12],[7,0,8,12],[10,0,10,12],[11,0,12,0],[11,1,12,1],[11,2,12,2],[11,3,11,4]]}
[{"$f":"+'Cover Page'!$B$29","v":"Annual Performance Report 2022"},null,null,null,null,null,null,null,{"$f":"+'Cover Page'!$B$33","v":"Newhaven Energy Recovery Facility\t\t\t\t\t\t\t"}]
[]
["Emissions to Air (continously monitored)"]
[null,null,null,null,null,null,null,null,null,null,null,null,null,null,null,"Notes:"]
["Summary of monitoring undertaken, standards used and compliance",null,null,null,null,null,null,null,null,null,null,null,null,null,null,"Template may require adjustment for any bespoke monitoring requirements of permit"]
["Monitoring undertaken in accordance with the standards listed in the Permit, compliance was maintained for 100% of 2022",null,null,null,null,null,null,null,null,null,null,null,null,null,null,"Report to 2 decimal places, i.e. xx.xx%"]
[]
[]
[]
[]
["Results of emissions to air that are continuously monitored (maximum and average values for each line)"]
["Substance","Reference Period","Emission Limit Value","A1",null,"A2",null,"A3",null,"A4",null,"A5"]
[null,null,null,"Max.","Avg.","Max.","Avg.","Max.","Avg.","Max.","Avg.","Max.","Avg."]
["Oxides of nitrogen","Daily mean","200 mg/m3 ",{"$f":"NOx!O19","v":188.7},{"$f":"NOx!N19","v":168.2666667},{"$f":"NOx!O34","v":192.7},{"$f":"NOx!N34","v":179.7833333}]
[null,"½ hourly mean","400 mg/m3 ",{"$f":"NOx!M19","v":231.5},{"$f":"NOx!L19","v":168.1666667},{"$f":"NOx!M34","v":263.7},{"$f":"NOx!L34","v":179.8416667}]
["Particulates","Daily mean","10 mg/m3",{"$f":"Particulates!O19","v":8.4},{"$f":"Particulates!N19","v":4.508333333},{"$f":"Particulates!O34","v":3.8},{"$f":"Particulates!N34","v":1.216666667}]
[null,"½ hourly mean","30 mg/m3 ",{"$f":"Particulates!M19","v":22},{"$f":"Particulates!L19","v":4.55},{"$f":"Particulates!M34","v":11.3},{"$f":"Particulates!L34","v":1.233333333}]
["Total Organic Carbon ","Daily mean","10 mg/m3 ",{"$f":"TOC!O19","v":1},{"$f":"TOC!N19","v":0.3},{"$f":"TOC!O34","v":0.5},{"$f":"TOC!N34","v":0.1916666667}]
[null,"½ hourly mean","20 mg/m3 ",{"$f":"TOC!M19","v":13.8},{"$f":"TOC!L19","v":0.325},{"$f":"TOC!M34","v":6.9},{"$f":"TOC!L34","v":0.2083333333}]
["Hydrogen chloride ","Daily mean","10 mg/m3 ",{"$f":"HCl!O19","v":7.4},{"$f":"HCl!N19","v":4.133333333},{"$f":"HCl!O34","v":6.8},{"$f":"HCl!N34","v":4.391666667}]
[null,"½ hourly mean","60 mg/m3 ",{"$f":"HCl!M19","v":15.4},{"$f":"HCl!L19","v":4.191666667},{"$f":"HCl!M34","v":44.4},{"$f":"HCl!L34","v":4.425}]
["Sulphur dioxide","Daily mean","50 mg/m3 ",{"$f":"'SO2'!O19","v":3.5},{"$f":"'SO2'!N19","v":0.2},{"$f":"'SO2'!O34","v":2.1},{"$f":"'SO2'!N34","v":0.1}]
[null,"½ hourly mean","200 mg/m3 ",{"$f":"'SO2'!M19","v":23.2},{"$f":"'SO2'!L19","v":0.25},{"$f":"'SO2'!M34","v":43.8},{"$f":"'SO2'!L34","v":0.1416666667}]
["Carbon monoxide ","Daily mean","50 mg/m3 ",{"$f":"'CO 95% 10 min'!Q19","v":12.1},{"$f":"'CO 95% 10 min'!P19","v":4.941666667},{"$f":"'CO 95% 10 min'!Q34","v":12.2},{"$f":"'CO 95% 10 min'!P34","v":5.3}]
[null,"95%ile 10-min avg *","150 mg/m3 *",{"$f":"'NH3'!N19","v":0.35},{"$f":"'NH3'!L19","v":0.4},{"$f":"'NH3'!M34","v":8.8},{"$f":"'NH3'!N34","v":0.2666666667}]
[" Ammonia","Daily mean","No limit set"]
["* = delete or amend as appropriate"]
["Comments :"]

{"sheet":"HCl","index":16,"n_rows":79,"n_cols":17,"rows_kept":79,"cut":false,"hidden":false,"merged":[[21,9,33,9],[36,9,48,9],[47,0,47,6],[48,0,51,6],[51,9,63,9],[66,9,78,9],[3,16,7,18],[4,1,4,3],[4,4,4,6],[4,9,4,14],[6,9,18,9],[9,16,11,18],[12,16,15,18]]}
[{"$f":"+'Cover Page'!$B$29","v":"Annual Performance Report 2022"},null,null,null,{"$f":"+'Cover Page'!$B$33","v":"Newhaven Energy Recovery Facility\t\t\t\t\t\t\t"}]
[]
["Monitoring of Hydrogen Chloride emissions",null,null,"Whole Installation",null,null,"See  Notes in Cell Q3",null,null,{"$f":"+A3","v":"Monitoring of Hydrogen Chloride emissions"},null,null,null,"Per Combustion Line",null,null,"Notes:"]
[null,null,null,null,null,null,null,null,null,null,null,null,null,null,null,null,"User to add logic to complete Whole installation, Table A5:G18. From the data in Per Combustion Line, Table J6:O79, subject to No. of lines installed"]
["mg/Nm3","1/2 Hourly Reference Periods",null,null,"Daily Reference Periods"]
[{"$f":"+'Cover Page'!C39","v":2022},"1/2 hourly HCl ELV","Monthly 1/2 hourly mean","Highest 1/2 hourly maximum","Daily HCl ELV","Monthly daily mean","Highest daily maximum",null,null,{"$f":"+A6","v":2022},"mg/Nm3","Monthly 1/2 hourly mean","Monthly 1/2 hourly maximum","Monthly daily mean","Monthly daily maximum"]
["Jan",60.0,{"$f":"(L7+L22)/2","v":3.7},29.15,10.0,{"$f":"(N7+N22)/2","v":3.65},5.8,null,null,"A1","Jan",3.2,13.9,3.1,4.8]
["Feb",60.0,{"$f":"(L8+L23)/2","v":4.6},10.85,10.0,{"$f":"(N8+N23)/2","v":4.55},5.85,null,null,null,"Feb",4.5,11.2,4.5,5.7]
["Mar",60.0,{"$f":"(L9+L24)/2","v":4.9},11.2,10.0,{"$f":"(N9+N24)/2","v":4.85},5.95,null,null,null,"Mar",5.0,13.1,4.9,6.0,null,"Whole Installation table A5:G18:"]
["Apr",60.0,{"$f":"(L10+L25)/2","v":4.75},11.1,10.0,{"$f":"(N10+N25)/2","v":4.65},6.85,null,null,null,"Apr",4.6,12.1,4.5,7.4,null,"Mean: for 1/2 hourly and daily periods calculate mean of values across all operational combustion lines for the month"]
["May",60.0,{"$f":"(L11+L26)/2","v":4.95},10.6,10.0,{"$f":"(N11+N26)/2","v":4.9},5.75,null,null,null,"May",4.7,11.5,4.6,5.3]
["Jun",60.0,{"$f":"(L12+L27)/2","v":4.7},8.65,10.0,{"$f":"(N12+N27)/2","v":4.7},5.65,null,null,null,"Jun",4.2,7.1,4.2,5.1]
["Jul",60.0,{"$f":"(L13+L28)/2","v":5.15},10.4,10.0,{"$f":"(N13+N28)/2","v":5.05},6.1,null,null,null,"Jul",5.0,10.0,4.9,6.0,null,"Maximum: for 1/2 hourly and daily periods use the highest value across all operational combustion lines for the month"]
["Aug",60.0,{"$f":"(L14+L29)/2","v":4.2},9.35,10.0,{"$f":"(N14+N29)/2","v":4.15},5.5,null,null,null,"Aug",4.0,9.4,3.9,4.8]
["Sep",60.0,{"$f":"(L15+L30)/2","v":4.65},10.55,10.0,{"$f":"(N15+N30)/2","v":4.65},6.05,null,null,null,"Sep",4.4,10.0,4.4,5.5]
["Oct",60.0,{"$f":"(L16+L31)/2","v":4.2},12.7,10.0,{"$f":"(N16+N31)/2","v":4.2},5.3,null,null,null,"Oct",4.2,15.4,4.2,5.1]
["Nov",60.0,{"$f":"(L17+L32)/2","v":3.15},10.45,10.0,{"$f":"(N17+N32)/2","v":3.05},4.35,null,null,null,"Nov",3.2,11.7,3.1,4.2]
["Dec",60.0,{"$f":"(L18+L33)/2","v":2.75},14.55,10.0,{"$f":"(N18+N33)/2","v":2.75},5.2,null,null,null,"Dec",3.3,12.6,3.3,5.4]
[null,null,null,null,null,null,null,null,null,null,"Annual",{"$f":"AVERAGE(L7:L18)","v":4.191666667},{"$f":"MAX(M7:M18)","v":15.4},{"$f":"AVERAGE(N7:N18)","v":4.133333333},{"$f":"MAX(O7:O18)","v":7.4}]
[]
[null,null,null,null,null,null,null,null,null,{"$f":"+A6","v":2022},"mg/Nm3","Monthly 1/2 hourly mean","Monthly 1/2 hourly maximum","Monthly daily mean","Monthly daily maximum"]
[null,null,null,null,null,null,null,null,null,"A2","Jan",4.2,44.4,4.2,6.8]
[null,null,null,null,null,null,null,null,null,null,"Feb",4.7,10.5,4.6,6.0]
[null,null,null,null,null,null,null,null,null,null,"Mar",4.8,9.3,4.8,5.9]
[null,null,null,null,null,null,null,null,null,null,"Apr",4.9,10.1,4.8,6.3]
[null,null,null,null,null,null,null,null,null,null,"May",5.2,9.7,5.2,6.2]
[null,null,null,null,null,null,null,null,null,null,"Jun",5.2,10.2,5.2,6.2]
[null,null,null,null,null,null,null,null,null,null,"Jul",5.3,10.8,5.2,6.2]
[null,null,null,null,null,null,null,null,null,null,"Aug",4.4,9.3,4.4,6.2]
[null,null,null,null,null,null,null,null,null,null,"Sep",4.9,11.1,4.9,6.6]
[null,null,null,null,null,null,null,null,null,null,"Oct",4.2,10.0,4.2,5.5]
[null,null,null,null,null,null,null,null,null,null,"Nov",3.1,9.2,3.0,4.5]
[null,null,null,null,null,null,null,null,null,null,"Dec",2.2,16.5,2.2,5.0]
[null,null,null,null,null,null,null,null,null,null,"Annual",{"$f":"AVERAGE(L22:L33)","v":4.425},{"$f":"MAX(M22:M33)","v":44.4},{"$f":"AVERAGE(N22:N33)","v":4.391666667},{"$f":"MAX(O22:O33)","v":6.8}]
[]
[null,null,null,null,null,null,null,null,null,{"$f":"+A6","v":2022},"mg/Nm3","Monthly 1/2 hourly mean","Monthly 1/2 hourly maximum","Monthly daily mean","Monthly daily maximum"]
[null,null,null,null,null,null,null,null,null,"A3","Jan"]
[null,null,null,null,null,null,null,null,null,null,"Feb"]
[null,null,null,null,null,null,null,null,null,null,"Mar"]
[null,null,null,null,null,null,null,null,null,null,"Apr"]
[null,null,null,null,null,null,null,null,null,null,"May"]
[null,null,null,null,null,null,null,null,null,null,"Jun"]
[null,null,null,null,null,null,null,null,null,null,"Jul"]
[null,null,null,null,null,null,null,null,null,null,"Aug"]
[null,null,null,null,null,null,null,null,null,null,"Sep"]
[null,null,null,null,null,null,null,null,null,null,"Oct"]
[null,null,null,null,null,null,null,null,null,null,"Nov"]
["Comments :",null,null,null,null,null,null,null,null,null,"Dec"]
[null,null,null,null,null,null,null,null,null,null,"Annual",{"$f":"AVERAGE(L37:L48)","v":"#DIV/0!"},{"$f":"MAX(M37:M48)","v":0},{"$f":"AVERAGE(N37:N48)","v":"#DIV/0!"},{"$f":"MAX(O37:O48)","v":0}]
[]
[null,null,null,null,null,null,null,null,null,{"$f":"+A6","v":2022},"mg/Nm3","Monthly 1/2 hourly mean","Monthly 1/2 hourly maximum","Monthly daily mean","Monthly daily maximum"]
[null,null,null,null,null,null,null,null,null,"A4","Jan"]
[null,null,null,null,null,null,null,null,null,null,"Feb"]
[null,null,null,null,null,null,null,null,null,null,"Mar"]
[null,null,null,null,null,null,null,null,null,null,"Apr"]
[null,null,null,null,null,null,null,null,null,null,"May"]
[null,null,null,null,null,null,null,null,null,null,"Jun"]
[null,null,null,null,null,null,null,null,null,null,"Jul"]
[null,null,null,null,null,null,null,null,null,null,"Aug"]
[null,null,null,null,null,null,null,null,null,null,"Sep"]
[null,null,null,null,null,null,null,null,null,null,"Oct"]
[null,null,null,null,null,null,null,null,null,null,"Nov"]
[null,null,null,null,null,null,null,null,null,null,"Dec"]
[null,null,null,null,null,null,null,null,null,null,"Annual",{"$f":"AVERAGE(L52:L63)","v":"#DIV/0!"},{"$f":"MAX(M52:M63)","v":0},{"$f":"AVERAGE(N52:N63)","v":"#DIV/0!"},{"$f":"MAX(O52:O63)","v":0}]
[]
[null,null,null,null,null,null,null,null,null,{"$f":"+A6","v":2022},"mg/Nm3","Monthly 1/2 hourly mean","Monthly 1/2 hourly maximum","Monthly daily mean","Monthly daily maximum"]
[null,null,null,null,null,null,null,null,null,"A5","Jan"]
[null,null,null,null,null,null,null,null,null,null,"Feb"]
[null,null,null,null,null,null,null,null,null,null,"Mar"]
[null,null,null,null,null,null,null,null,null,null,"Apr"]
[null,null,null,null,null,null,null,null,null,null,"May"]
[null,null,null,null,null,null,null,null,null,null,"Jun"]
[null,null,null,null,null,null,null,null,null,null,"Jul"]
[null,null,null,null,null,null,null,null,null,null,"Aug"]
[null,null,null,null,null,null,null,null,null,null,"Sep"]
[null,null,null,null,null,null,null,null,null,null,"Oct"]
[null,null,null,null,null,null,null,null,null,null,"Nov"]
[null,null,null,null,null,null,null,null,null,null,"Dec"]
[null,null,null,null,null,null,null,null,null,null,"Annual",{"$f":"AVERAGE(L67:L78)","v":"#DIV/0!"},{"$f":"MAX(M67:M78)","v":0},{"$f":"AVERAGE(N67:N78)","v":"#DIV/0!"},{"$f":"MAX(O67:O78)","v":0}]

{"sheet":"SO2","index":17,"n_rows":79,"n_cols":17,"rows_kept":79,"cut":false,"hidden":false,"merged":[[21,9,33,9],[36,9,48,9],[47,0,47,6],[48,0,51,6],[51,9,63,9],[66,9,78,9],[3,16,7,18],[4,1,4,3],[4,4,4,6],[4,9,4,14],[6,9,18,9],[9,16,11,18],[12,16,15,18]]}
[{"$f":"+'Cover Page'!$B$29","v":"Annual Performance Report 2022"},null,null,null,{"$f":"+'Cover Page'!$B$33","v":"Newhaven Energy Recovery Facility\t\t\t\t\t\t\t"}]
[]
["Monitoring of Sulphur dioxide emissions",null,null,"Whole Installation",null,null,"See  Notes in Cell Q3",null,null,{"$f":"+A3","v":"Monitoring of Sulphur dioxide emissions"},null,null,null,"Per Combustion Line",null,null,"Notes:"]
[null,null,null,null,null,null,null,null,null,null,null,null,null,null,null,null,"User to add logic to complete Whole installation, Table A5:G18. From the data in Per Combustion Line, Table J6:O79, subject to No. of lines installed"]
["mg/Nm3","1/2 Hourly Reference Periods",null,null,"Daily Reference Periods"]
[{"$f":"+'Cover Page'!C39","v":2022},"1/2 hourly SO2 ELV","Monthly 1/2 hourly mean","Highest 1/2 hourly maximum","Daily SO2 ELV","Monthly daily mean","Highest daily maximum",null,null,{"$f":"+A6","v":2022},"mg/Nm3","Monthly 1/2 hourly mean","Monthly 1/2 hourly maximum","Monthly daily mean","Monthly daily maximum"]
["Jan",200.0,{"$f":"(L7+L22)/2","v":0.15},26.6,50.0,{"$f":"(N7+N22)/2","v":0.15},1.2,null,null,"A1","Jan",0.1,14.1,0.1,0.6]
["Feb",200.0,{"$f":"(L8+L23)/2","v":0.2},16.65,50.0,{"$f":"(N8+N23)/2","v":0.15},0.95,null,null,null,"Feb",0.2,16.5,0.1,0.9]
["Mar",200.0,{"$f":"(L9+L24)/2","v":0.2},13.4,50.0,{"$f":"(N9+N24)/2","v":0.15},0.8,null,null,null,"Mar",0.2,9.3,0.1,0.4,null,"Whole Installation table A5:G18:"]
["Apr",200.0,{"$f":"(L10+L25)/2","v":0.2},12.9,50.0,{"$f":"(N10+N25)/2","v":0.15},1.65,null,null,null,"Apr",0.3,16.0,0.2,2.5,null,"Mean: for 1/2 hourly and daily periods calculate mean of values across all operational combustion lines for the month"]
["May",200.0,{"$f":"(L11+L26)/2","v":0.2},26.15,50.0,{"$f":"(N11+N26)/2","v":0.15},0.8,null,null,null,"May",0.1,8.5,0.1,0.5]
["Jun",200.0,{"$f":"(L12+L27)/2","v":0.1},5.15,50.0,{"$f":"(N12+N27)/2","v":0.05},0.3,null,null,null,"Jun",0.1,3.9,0.1,0.3]
["Jul",200.0,{"$f":"(L13+L28)/2","v":0.1},8.5,50.0,{"$f":"(N13+N28)/2","v":0.05},0.35,null,null,null,"Jul",0.1,2.2,0.1,0.2,null,"Maximum: for 1/2 hourly and daily periods use the highest value across all operational combustion lines for the month"]
["Aug",200.0,{"$f":"(L14+L29)/2","v":0.15},5.8,50.0,{"$f":"(N14+N29)/2","v":0.1},0.35,null,null,null,"Aug",0.2,4.3,0.1,0.3]
["Sep",200.0,{"$f":"(L15+L30)/2","v":0.15},7.1,50.0,{"$f":"(N15+N30)/2","v":0.1},0.5,null,null,null,"Sep",0.2,6.5,0.2,0.3]
["Oct",200.0,{"$f":"(L16+L31)/2","v":0.15},14.8,50.0,{"$f":"(N16+N31)/2","v":0.1},0.55,null,null,null,"Oct",0.3,23.2,0.2,0.9]
["Nov",200.0,{"$f":"(L17+L32)/2","v":0.25},11.9,50.0,{"$f":"(N17+N32)/2","v":0.15},0.4,null,null,null,"Nov",0.4,12.9,0.3,0.7]
["Dec",200.0,{"$f":"(L18+L33)/2","v":0.5},28.85,50.0,{"$f":"(N18+N33)/2","v":0.5},2.8,null,null,null,"Dec",0.8,18.4,0.8,3.5]
[null,null,null,null,null,null,null,null,null,null,"Annual",{"$f":"AVERAGE(L7:L18)","v":0.25},{"$f":"MAX(M7:M18)","v":23.2},{"$f":"AVERAGE(N7:N18)","v":0.2},{"$f":"MAX(O7:O18)","v":3.5}]
[]
[null,null,null,null,null,null,null,null,null,{"$f":"+A6","v":2022},"mg/Nm3","Monthly 1/2 hourly mean","Monthly 1/2 hourly maximum","Monthly daily mean","Monthly daily maximum"]
[null,null,null,null,null,null,null,null,null,"A2","Jan",0.2,39.1,0.2,1.8]
[null,null,null,null,null,null,null,null,null,null,"Feb",0.2,16.8,0.2,1.0]
[null,null,null,null,null,null,null,null,null,null,"Mar",0.2,17.5,0.2,1.2]
[null,null,null,null,null,null,null,null,null,null,"Apr",0.1,9.8,0.1,0.8]
[null,null,null,null,null,null,null,null,null,null,"May",0.3,43.8,0.2,1.1]
[null,null,null,null,null,null,null,null,null,null,"Jun",0.1,6.4,0.0,0.3]
[null,null,null,null,null,null,null,null,null,null,"Jul",0.1,14.8,0.0,0.5]
[null,null,null,null,null,null,null,null,null,null,"Aug",0.1,7.3,0.1,0.4]
[null,null,null,null,null,null,null,null,null,null,"Sep",0.1,7.7,0.0,0.7]
[null,null,null,null,null,null,null,null,null,null,"Oct",0.0,6.4,0.0,0.2]
[null,null,null,null,null,null,null,null,null,null,"Nov",0.1,10.9,0.0,0.1]
[null,null,null,null,null,null,null,null,null,null,"Dec",0.2,39.3,0.2,2.1]
[null,null,null,null,null,null,null,null,null,null,"Annual",{"$f":"AVERAGE(L22:L33)","v":0.1416666667},{"$f":"MAX(M22:M33)","v":43.8},{"$f":"AVERAGE(N22:N33)","v":0.1},{"$f":"MAX(O22:O33)","v":2.1}]
[]
[null,null,null,null,null,null,null,null,null,{"$f":"+A6","v":2022},"mg/Nm3","Monthly 1/2 hourly mean","Monthly 1/2 hourly maximum","Monthly daily mean","Monthly daily maximum"]
[null,null,null,null,null,null,null,null,null,"A3","Jan"]
[null,null,null,null,null,null,null,null,null,null,"Feb"]
[null,null,null,null,null,null,null,null,null,null,"Mar"]
[null,null,null,null,null,null,null,null,null,null,"Apr"]
[null,null,null,null,null,null,null,null,null,null,"May"]
[null,null,null,null,null,null,null,null,null,null,"Jun"]
[null,null,null,null,null,null,null,null,null,null,"Jul"]
[null,null,null,null,null,null,null,null,null,null,"Aug"]
[null,null,null,null,null,null,null,null,null,null,"Sep"]
[null,null,null,null,null,null,null,null,null,null,"Oct"]
[null,null,null,null,null,null,null,null,null,null,"Nov"]
["Comments :",null,null,null,null,null,null,null,null,null,"Dec"]
[null,null,null,null,null,null,null,null,null,null,"Annual",{"$f":"AVERAGE(L37:L48)","v":"#DIV/0!"},{"$f":"MAX(M37:M48)","v":0},{"$f":"AVERAGE(N37:N48)","v":"#DIV/0!"},{"$f":"MAX(O37:O48)","v":0}]
[]
[null,null,null,null,null,null,null,null,null,{"$f":"+A6","v":2022},"mg/Nm3","Monthly 1/2 hourly mean","Monthly 1/2 hourly maximum","Monthly daily mean","Monthly daily maximum"]
[null,null,null,null,null,null,null,null,null,"A4","Jan"]
[null,null,null,null,null,null,null,null,null,null,"Feb"]
[null,null,null,null,null,null,null,null,null,null,"Mar"]
[null,null,null,null,null,null,null,null,null,null,"Apr"]
[null,null,null,null,null,null,null,null,null,null,"May"]
[null,null,null,null,null,null,null,null,null,null,"Jun"]
[null,null,null,null,null,null,null,null,null,null,"Jul"]
[null,null,null,null,null,null,null,null,null,null,"Aug"]
[null,null,null,null,null,null,null,null,null,null,"Sep"]
[null,null,null,null,null,null,null,null,null,null,"Oct"]
[null,null,null,null,null,null,null,null,null,null,"Nov"]
[null,null,null,null,null,null,null,null,null,null,"Dec"]
[null,null,null,null,null,null,null,null,null,null,"Annual",{"$f":"AVERAGE(L52:L63)","v":"#DIV/0!"},{"$f":"MAX(M52:M63)","v":0},{"$f":"AVERAGE(N52:N63)","v":"#DIV/0!"},{"$f":"MAX(O52:O63)","v":0}]
[]
[null,null,null,null,null,null,null,null,null,{"$f":"+A6","v":2022},"mg/Nm3","Monthly 1/2 hourly mean","Monthly 1/2 hourly maximum","Monthly daily mean","Monthly daily maximum"]
[null,null,null,null,null,null,null,null,null,"A5","Jan"]
[null,null,null,null,null,null,null,null,null,null,"Feb"]
[null,null,null,null,null,null,null,null,null,null,"Mar"]
[null,null,null,null,null,null,null,null,null,null,"Apr"]
[null,null,null,null,null,null,null,null,null,null,"May"]
[null,null,null,null,null,null,null,null,null,null,"Jun"]
[null,null,null,null,null,null,null,null,null,null,"Jul"]
[null,null,null,null,null,null,null,null,null,null,"Aug"]
[null,null,null,null,null,null,null,null,null,null,"Sep"]
[null,null,null,null,null,null,null,null,null,null,"Oct"]
[null,null,null,null,null,null,null,null,null,null,"Nov"]
[null,null,null,null,null,null,null,null,null,null,"Dec"]
[null,null,null,null,null,null,null,null,null,null,"Annual",{"$f":"AVERAGE(L67:L78)","v":"#DIV/0!"},{"$f":"MAX(M67:M78)","v":0},{"$f":"AVERAGE(N67:N78)","v":"#DIV/0!"},{"$f":"MAX(O67:O78)","v":0}]

{"sheet":"NOx","index":18,"n_rows":79,"n_cols":17,"rows_kept":79,"cut":false,"hidden":false,"merged":[[21,9,33,9],[36,9,48,9],[47,0,47,6],[48,0,51,6],[51,9,63,9],[66,9,78,9],[3,16,7,18],[4,1,4,3],[4,4,4,6],[4,9,4,14],[6,9,18,9],[9,16,11,18],[12,16,15,18]]}
[{"$f":"+'Cover Page'!$B$29","v":"Annual Performance Report 2022"},null,null,null,{"$f":"+'Cover Page'!$B$33","v":"Newhaven Energy Recovery Facility\t\t\t\t\t\t\t"}]
[]
["Monitoring of Oxides of Nitrogen emissions",null,null,"Whole Installation",null,null,"See  Notes in Cell Q3",null,null,{"$f":"+A3","v":"Monitoring of Oxides of Nitrogen emissions"},null,null,null,"Per Combustion Line",null,null,"Notes:"]
[null,null,null,null,null,null,null,null,null,null,null,null,null,null,null,null,"User to add logic to complete Whole installation, Table A5:G18. From the data in Per Combustion Line, Table J6:O79, subject to No. of lines installed"]
["mg/Nm3","1/2 Hourly Reference Periods",null,null,"Daily Reference Periods"]
[{"$f":"+'Cover Page'!C39","v":2022},"1/2 hourly NOx ELV","Monthly 1/2 hourly mean","Highest 1/2 hourly maximum","Daily NOx ELV","Monthly daily mean","Highest daily maximum",null,null,{"$f":"+A6","v":2022},"mg/Nm3","Monthly 1/2 hourly mean","Monthly 1/2 hourly maximum","Monthly daily mean","Monthly daily maximum"]
["Jan",400.0,{"$f":"(L7+L22)/2","v":150.2},200.65,200.0,{"$f":"(N7+N22)/2","v":150.15},154.15,null,null,"A1","Jan",150.1,188.7,150.0,151.9]
["Feb",400.0,{"$f":"(L8+L23)/2","v":150.05},191.15,200.0,{"$f":"(N8+N23)/2","v":150},152.5,null,null,null,"Feb",150.0,191.7,150.0,152.0]
["Mar",400.0,{"$f":"(L9+L24)/2","v":149.95},191.4,200.0,{"$f":"(N9+N24)/2","v":149.95},151.05,null,null,null,"Mar",150.0,191.9,150.0,151.2,null,"Whole Installation table A5:G18:"]
["Apr",400.0,{"$f":"(L10+L25)/2","v":183.5},237.85,200.0,{"$f":"(N10+N25)/2","v":183.5},189.05,null,null,null,"Apr",177.5,226.7,177.5,186.5,null,"Mean: for 1/2 hourly and daily periods calculate mean of values across all operational combustion lines for the month"]
["May",400.0,{"$f":"(L11+L26)/2","v":185.95},224.4,200.0,{"$f":"(N11+N26)/2","v":185.9},189.2,null,null,null,"May",182.0,224.5,182.0,188.0]
["Jun",400.0,{"$f":"(L12+L27)/2","v":183.85},224.35,200.0,{"$f":"(N12+N27)/2","v":183.85},186.95,null,null,null,"Jun",177.8,223.9,177.9,183.3]
["Jul",400.0,{"$f":"(L13+L28)/2","v":183.9},222.65,200.0,{"$f":"(N13+N28)/2","v":183.9},188.1,null,null,null,"Jul",177.7,216.5,177.7,185.2,null,"Maximum: for 1/2 hourly and daily periods use the highest value across all operational combustion lines for the month"]
["Aug",400.0,{"$f":"(L14+L29)/2","v":180.15},213.3,200.0,{"$f":"(N14+N29)/2","v":180.3},186.65,null,null,null,"Aug",170.8,201.6,171.1,182.2]
["Sep",400.0,{"$f":"(L15+L30)/2","v":179.55},236.8,200.0,{"$f":"(N15+N30)/2","v":179.6},184.7,null,null,null,"Sep",169.6,209.9,169.7,176.7]
["Oct",400.0,{"$f":"(L16+L31)/2","v":179.05},221.4,200.0,{"$f":"(N16+N31)/2","v":179},188.5,null,null,null,"Oct",168.6,217.9,168.6,186.4]
["Nov",400.0,{"$f":"(L17+L32)/2","v":185.8},229.65,200.0,{"$f":"(N17+N32)/2","v":185.7},189.45,null,null,null,"Nov",181.5,224.0,181.5,186.8]
["Dec",400.0,{"$f":"(L18+L33)/2","v":176.1},230.3,200.0,{"$f":"(N18+N33)/2","v":176.45},189.8,null,null,null,"Dec",162.4,231.5,163.2,188.7]
[null,null,null,null,null,null,null,null,null,null,"Annual",{"$f":"AVERAGE(L7:L18)","v":168.1666667},{"$f":"MAX(M7:M18)","v":231.5},{"$f":"AVERAGE(N7:N18)","v":168.2666667},{"$f":"MAX(O7:O18)","v":188.7}]
[]
[null,null,null,null,null,null,null,null,null,{"$f":"+A6","v":2022},"mg/Nm3","Monthly 1/2 hourly mean","Monthly 1/2 hourly maximum","Monthly daily mean","Monthly daily maximum"]
[null,null,null,null,null,null,null,null,null,"A2","Jan",150.3,212.6,150.3,156.4]
[null,null,null,null,null,null,null,null,null,null,"Feb",150.1,190.6,150.0,153.0]
[null,null,null,null,null,null,null,null,null,null,"Mar",149.9,190.9,149.9,150.9]
[null,null,null,null,null,null,null,null,null,null,"Apr",189.5,249.0,189.5,191.6]
[null,null,null,null,null,null,null,null,null,null,"May",189.9,224.3,189.8,190.4]
[null,null,null,null,null,null,null,null,null,null,"Jun",189.9,224.8,189.8,190.6]
[null,null,null,null,null,null,null,null,null,null,"Jul",190.1,228.8,190.1,191.0]
[null,null,null,null,null,null,null,null,null,null,"Aug",189.5,225.0,189.5,191.1]
[null,null,null,null,null,null,null,null,null,null,"Sep",189.5,263.7,189.5,192.7]
[null,null,null,null,null,null,null,null,null,null,"Oct",189.5,224.9,189.4,190.6]
[null,null,null,null,null,null,null,null,null,null,"Nov",190.1,235.3,189.9,192.1]
[null,null,null,null,null,null,null,null,null,null,"Dec",189.8,229.1,189.7,190.9]
[null,null,null,null,null,null,null,null,null,null,"Annual",{"$f":"AVERAGE(L22:L33)","v":179.8416667},{"$f":"MAX(M22:M33)","v":263.7},{"$f":"AVERAGE(N22:N33)","v":179.7833333},{"$f":"MAX(O22:O33)","v":192.7}]
[]
[null,null,null,null,null,null,null,null,null,{"$f":"+A6","v":2022},"mg/Nm3","Monthly 1/2 hourly mean","Monthly 1/2 hourly maximum","Monthly daily mean","Monthly daily maximum"]
[null,null,null,null,null,null,null,null,null,"A3","Jan"]
[null,null,null,null,null,null,null,null,null,null,"Feb"]
[null,null,null,null,null,null,null,null,null,null,"Mar"]
[null,null,null,null,null,null,null,null,null,null,"Apr"]
[null,null,null,null,null,null,null,null,null,null,"May"]
[null,null,null,null,null,null,null,null,null,null,"Jun"]
[null,null,null,null,null,null,null,null,null,null,"Jul"]
[null,null,null,null,null,null,null,null,null,null,"Aug"]
[null,null,null,null,null,null,null,null,null,null,"Sep"]
[null,null,null,null,null,null,null,null,null,null,"Oct"]
[null,null,null,null,null,null,null,null,null,null,"Nov"]
["Comments :",null,null,null,null,null,null,null,null,null,"Dec"]
[null,null,null,null,null,null,null,null,null,null,"Annual",{"$f":"AVERAGE(L37:L48)","v":"#DIV/0!"},{"$f":"MAX(M37:M48)","v":0},{"$f":"AVERAGE(N37:N48)","v":"#DIV/0!"},{"$f":"MAX(O37:O48)","v":0}]
[]
[null,null,null,null,null,null,null,null,null,{"$f":"+A6","v":2022},"mg/Nm3","Monthly 1/2 hourly mean","Monthly 1/2 hourly maximum","Monthly daily mean","Monthly daily maximum"]
[null,null,null,null,null,null,null,null,null,"A4","Jan"]
[null,null,null,null,null,null,null,null,null,null,"Feb"]
[null,null,null,null,null,null,null,null,null,null,"Mar"]
[null,null,null,null,null,null,null,null,null,null,"Apr"]
[null,null,null,null,null,null,null,null,null,null,"May"]
[null,null,null,null,null,null,null,null,null,null,"Jun"]
[null,null,null,null,null,null,null,null,null,null,"Jul"]
[null,null,null,null,null,null,null,null,null,null,"Aug"]
[null,null,null,null,null,null,null,null,null,null,"Sep"]
[null,null,null,null,null,null,null,null,null,null,"Oct"]
[null,null,null,null,null,null,null,null,null,null,"Nov"]
[null,null,null,null,null,null,null,null,null,null,"Dec"]
[null,null,null,null,null,null,null,null,null,null,"Annual",{"$f":"AVERAGE(L52:L63)","v":"#DIV/0!"},{"$f":"MAX(M52:M63)","v":0},{"$f":"AVERAGE(N52:N63)","v":"#DIV/0!"},{"$f":"MAX(O52:O63)","v":0}]
[]
[null,null,null,null,null,null,null,null,null,{"$f":"+A6","v":2022},"mg/Nm3","Monthly 1/2 hourly mean","Monthly 1/2 hourly maximum","Monthly daily mean","Monthly daily maximum"]
[null,null,null,null,null,null,null,null,null,"A5","Jan"]
[null,null,null,null,null,null,null,null,null,null,"Feb"]
[null,null,null,null,null,null,null,null,null,null,"Mar"]
[null,null,null,null,null,null,null,null,null,null,"Apr"]
[null,null,null,null,null,null,null,null,null,null,"May"]
[null,null,null,null,null,null,null,null,null,null,"Jun"]
[null,null,null,null,null,null,null,null,null,null,"Jul"]
[null,null,null,null,null,null,null,null,null,null,"Aug"]
[null,null,null,null,null,null,null,null,null,null,"Sep"]
[null,null,null,null,null,null,null,null,null,null,"Oct"]
[null,null,null,null,null,null,null,null,null,null,"Nov"]
[null,null,null,null,null,null,null,null,null,null,"Dec"]
[null,null,null,null,null,null,null,null,null,null,"Annual",{"$f":"AVERAGE(L67:L78)","v":"#DIV/0!"},{"$f":"MAX(M67:M78)","v":0},{"$f":"AVERAGE(N67:N78)","v":"#DIV/0!"},{"$f":"MAX(O67:O78)","v":0}]

{"sheet":"TOC","index":19,"n_rows":79,"n_cols":17,"rows_kept":79,"cut":false,"hidden":false,"merged":[[21,9,33,9],[36,9,48,9],[47,0,47,6],[48,0,51,6],[51,9,63,9],[66,9,78,9],[3,16,7,18],[4,1,4,3],[4,4,4,6],[4,9,4,14],[6,9,18,9],[9,16,11,18],[12,16,15,18]]}
[{"$f":"+'Cover Page'!$B$29","v":"Annual Performance Report 2022"},null,null,null,{"$f":"+'Cover Page'!$B$33","v":"Newhaven Energy Recovery Facility\t\t\t\t\t\t\t"}]
[]
["Monitoring of Total organic carbon emissions",null,null,"Whole Installation",null,null,"See  Notes in Cell Q3",null,null,{"$f":"+A3","v":"Monitoring of Total organic carbon emissions"},null,null,null,"Per Combustion Line",null,null,"Notes:"]
[null,null,null,null,null,null,null,null,null,null,null,null,null,null,null,null,"User to add logic to complete Whole installation, Table A5:G18. From the data in Per Combustion Line, Table J6:O79, subject to No. of lines installed"]
["mg/Nm3","1/2 Hourly Reference Periods",null,null,"Daily Reference Periods"]
[{"$f":"+'Cover Page'!C39","v":2022},"1/2 hourly TOC ELV","Monthly 1/2 hourly mean","Highest 1/2 hourly maximum","Daily TOC ELV","Monthly daily mean","Highest daily maximum",null,null,{"$f":"+A6","v":2022},"mg/Nm3","Monthly 1/2 hourly mean","Monthly 1/2 hourly maximum","Monthly daily mean","Monthly daily maximum"]
["Jan",20.0,{"$f":"(L7+L22)/2","v":0.25},4.6,10.0,{"$f":"(N7+N22)/2","v":0.2},0.7,null,null,"A1","Jan",0.3,5.8,0.3,1.0]
["Feb",20.0,{"$f":"(L8+L23)/2","v":0.25},4.2,10.0,{"$f":"(N8+N23)/2","v":0.25},0.55,null,null,null,"Feb",0.3,5.3,0.3,0.7]
["Mar",20.0,{"$f":"(L9+L24)/2","v":0.25},4.75,10.0,{"$f":"(N9+N24)/2","v":0.25},0.4,null,null,null,"Mar",0.3,3.8,0.3,0.4,null,"Whole Installation table A5:G18:"]
["Apr",20.0,{"$f":"(L10+L25)/2","v":0.25},3.25,10.0,{"$f":"(N10+N25)/2","v":0.25},0.4,null,null,null,"Apr",0.3,2.1,0.3,0.4,null,"Mean: for 1/2 hourly and daily periods calculate mean of values across all operational combustion lines for the month"]
["May",20.0,{"$f":"(L11+L26)/2","v":0.25},4.6,10.0,{"$f":"(N11+N26)/2","v":0.2},0.35,null,null,null,"May",0.3,4.0,0.2,0.4]
["Jun",20.0,{"$f":"(L12+L27)/2","v":0.25},6.25,10.0,{"$f":"(N12+N27)/2","v":0.25},0.4,null,null,null,"Jun",0.3,5.6,0.3,0.4]
["Jul",20.0,{"$f":"(L13+L28)/2","v":0.25},3.9,10.0,{"$f":"(N13+N28)/2","v":0.2},0.4,null,null,null,"Jul",0.3,4.2,0.2,0.5,null,"Maximum: for 1/2 hourly and daily periods use the highest value across all operational combustion lines for the month"]
["Aug",20.0,{"$f":"(L14+L29)/2","v":0.35},7.6,10.0,{"$f":"(N14+N29)/2","v":0.3},0.6,null,null,null,"Aug",0.4,10.1,0.4,0.7]
["Sep",20.0,{"$f":"(L15+L30)/2","v":0.3},9.3,10.0,{"$f":"(N15+N30)/2","v":0.3},0.55,null,null,null,"Sep",0.4,13.8,0.4,0.7]
["Oct",20.0,{"$f":"(L16+L31)/2","v":0.3},4.05,10.0,{"$f":"(N16+N31)/2","v":0.25},0.4,null,null,null,"Oct",0.4,4.9,0.3,0.5]
["Nov",20.0,{"$f":"(L17+L32)/2","v":0.25},5.35,10.0,{"$f":"(N17+N32)/2","v":0.25},0.45,null,null,null,"Nov",0.3,7.7,0.3,0.6]
["Dec",20.0,{"$f":"(L18+L33)/2","v":0.25},4.65,10.0,{"$f":"(N18+N33)/2","v":0.25},0.4,null,null,null,"Dec",0.3,6.5,0.3,0.5]
[null,null,null,null,null,null,null,null,null,null,"Annual",{"$f":"AVERAGE(L7:L18)","v":0.325},{"$f":"MAX(M7:M18)","v":13.8},{"$f":"AVERAGE(N7:N18)","v":0.3},{"$f":"MAX(O7:O18)","v":1}]
[]
[null,null,null,null,null,null,null,null,null,{"$f":"+A6","v":2022},"mg/Nm3","Monthly 1/2 hourly mean","Monthly 1/2 hourly maximum","Monthly daily mean","Monthly daily maximum"]
[null,null,null,null,null,null,null,null,null,"A2","Jan",0.2,3.4,0.1,0.4]
[null,null,null,null,null,null,null,null,null,null,"Feb",0.2,3.1,0.2,0.4]
[null,null,null,null,null,null,null,null,null,null,"Mar",0.2,5.7,0.2,0.4]
[null,null,null,null,null,null,null,null,null,null,"Apr",0.2,4.4,0.2,0.4]
[null,null,null,null,null,null,null,null,null,null,"May",0.2,5.2,0.2,0.3]
[null,null,null,null,null,null,null,null,null,null,"Jun",0.2,6.9,0.2,0.4]
[null,null,null,null,null,null,null,null,null,null,"Jul",0.2,3.6,0.2,0.3]
[null,null,null,null,null,null,null,null,null,null,"Aug",0.3,5.1,0.2,0.5]
[null,null,null,null,null,null,null,null,null,null,"Sep",0.2,4.8,0.2,0.4]
[null,null,null,null,null,null,null,null,null,null,"Oct",0.2,3.2,0.2,0.3]
[null,null,null,null,null,null,null,null,null,null,"Nov",0.2,3.0,0.2,0.3]
[null,null,null,null,null,null,null,null,null,null,"Dec",0.2,2.8,0.2,0.3]
[null,null,null,null,null,null,null,null,null,null,"Annual",{"$f":"AVERAGE(L22:L33)","v":0.2083333333},{"$f":"MAX(M22:M33)","v":6.9},{"$f":"AVERAGE(N22:N33)","v":0.1916666667},{"$f":"MAX(O22:O33)","v":0.5}]
[]
[null,null,null,null,null,null,null,null,null,{"$f":"+A6","v":2022},"mg/Nm3","Monthly 1/2 hourly mean","Monthly 1/2 hourly maximum","Monthly daily mean","Monthly daily maximum"]
[null,null,null,null,null,null,null,null,null,"A3","Jan"]
[null,null,null,null,null,null,null,null,null,null,"Feb"]
[null,null,null,null,null,null,null,null,null,null,"Mar"]
[null,null,null,null,null,null,null,null,null,null,"Apr"]
[null,null,null,null,null,null,null,null,null,null,"May"]
[null,null,null,null,null,null,null,null,null,null,"Jun"]
[null,null,null,null,null,null,null,null,null,null,"Jul"]
[null,null,null,null,null,null,null,null,null,null,"Aug"]
[null,null,null,null,null,null,null,null,null,null,"Sep"]
[null,null,null,null,null,null,null,null,null,null,"Oct"]
[null,null,null,null,null,null,null,null,null,null,"Nov"]
["Comments :",null,null,null,null,null,null,null,null,null,"Dec"]
[null,null,null,null,null,null,null,null,null,null,"Annual",{"$f":"AVERAGE(L37:L48)","v":"#DIV/0!"},{"$f":"MAX(M37:M48)","v":0},{"$f":"AVERAGE(N37:N48)","v":"#DIV/0!"},{"$f":"MAX(O37:O48)","v":0}]
[]
[null,null,null,null,null,null,null,null,null,{"$f":"+A6","v":2022},"mg/Nm3","Monthly 1/2 hourly mean","Monthly 1/2 hourly maximum","Monthly daily mean","Monthly daily maximum"]
[null,null,null,null,null,null,null,null,null,"A4","Jan"]
[null,null,null,null,null,null,null,null,null,null,"Feb"]
[null,null,null,null,null,null,null,null,null,null,"Mar"]
[null,null,null,null,null,null,null,null,null,null,"Apr"]
[null,null,null,null,null,null,null,null,null,null,"May"]
[null,null,null,null,null,null,null,null,null,null,"Jun"]
[null,null,null,null,null,null,null,null,null,null,"Jul"]
[null,null,null,null,null,null,null,null,null,null,"Aug"]
[null,null,null,null,null,null,null,null,null,null,"Sep"]
[null,null,null,null,null,null,null,null,null,null,"Oct"]
[null,null,null,null,null,null,null,null,null,null,"Nov"]
[null,null,null,null,null,null,null,null,null,null,"Dec"]
[null,null,null,null,null,null,null,null,null,null,"Annual",{"$f":"AVERAGE(L52:L63)","v":"#DIV/0!"},{"$f":"MAX(M52:M63)","v":0},{"$f":"AVERAGE(N52:N63)","v":"#DIV/0!"},{"$f":"MAX(O52:O63)","v":0}]
[]
[null,null,null,null,null,null,null,null,null,{"$f":"+A6","v":2022},"mg/Nm3","Monthly 1/2 hourly mean","Monthly 1/2 hourly maximum","Monthly daily mean","Monthly daily maximum"]
[null,null,null,null,null,null,null,null,null,"A5","Jan"]
[null,null,null,null,null,null,null,null,null,null,"Feb"]
[null,null,null,null,null,null,null,null,null,null,"Mar"]
[null,null,null,null,null,null,null,null,null,null,"Apr"]
[null,null,null,null,null,null,null,null,null,null,"May"]
[null,null,null,null,null,null,null,null,null,null,"Jun"]
[null,null,null,null,null,null,null,null,null,null,"Jul"]
[null,null,null,null,null,null,null,null,null,null,"Aug"]
[null,null,null,null,null,null,null,null,null,null,"Sep"]
[null,null,null,null,null,null,null,null,null,null,"Oct"]
[null,null,null,null,null,null,null,null,null,null,"Nov"]
[null,null,null,null,null,null,null,null,null,null,"Dec"]
[null,null,null,null,null,null,null,null,null,null,"Annual",{"$f":"AVERAGE(L67:L78)","v":"#DIV/0!"},{"$f":"MAX(M67:M78)","v":0},{"$f":"AVERAGE(N67:N78)","v":"#DIV/0!"},{"$f":"MAX(O67:O78)","v":0}]

{"sheet":"Particulates","index":20,"n_rows":79,"n_cols":17,"rows_kept":79,"cut":false,"hidden":false,"merged":[[21,9,33,9],[36,9,48,9],[47,0,47,6],[48,0,51,6],[51,9,63,9],[66,9,78,9],[3,16,7,18],[4,1,4,3],[4,4,4,6],[4,9,4,14],[6,9,18,9],[9,16,11,18],[12,16,15,18]]}
[{"$f":"+'Cover Page'!$B$29","v":"Annual Performance Report 2022"},null,null,null,{"$f":"+'Cover Page'!$B$33","v":"Newhaven Energy Recovery Facility\t\t\t\t\t\t\t"}]
[]
["Monitoring of Particulate matter emissions",null,null,"Whole Installation",null,null,"See  Notes in Cell Q3",null,null,{"$f":"+A3","v":"Monitoring of Particulate matter emissions"},null,null,null,"Per Combustion Line",null,null,"Notes:"]
[null,null,null,null,null,null,null,null,null,null,null,null,null,null,null,null,"User to add logic to complete Whole installation, Table A5:G18. From the data in Per Combustion Line, Table J6:O79, subject to No. of lines installed"]
["mg/Nm3","1/2 Hourly Reference Periods",null,null,"Daily Reference Periods"]
[{"$f":"+'Cover Page'!C39","v":2022},"1/2 hourly PM ELV","Monthly 1/2 hourly mean","Highest 1/2 hourly maximum","Daily PM ELV","Monthly daily mean","Highest daily maximum",null,null,{"$f":"+A6","v":2022},"mg/Nm3","Monthly 1/2 hourly mean","Monthly 1/2 hourly maximum","Monthly daily mean","Monthly daily maximum"]
["Jan",30.0,{"$f":"(L7+L22)/2","v":2.45},7.3,10.0,{"$f":"(N7+N22)/2","v":2.45},3.85,null,null,"A1","Jan",4.1,12.7,4.1,6.7]
["Feb",30.0,{"$f":"(L8+L23)/2","v":2.2},5.35,10.0,{"$f":"(N8+N23)/2","v":2.15},3.25,null,null,null,"Feb",3.5,9.1,3.5,5.3]
["Mar",30.0,{"$f":"(L9+L24)/2","v":1.85},4.55,10.0,{"$f":"(N9+N24)/2","v":1.8},2.65,null,null,null,"Mar",2.9,5.3,2.8,4.2,null,"Whole Installation table A5:G18:"]
["Apr",30.0,{"$f":"(L10+L25)/2","v":2.7},7.35,10.0,{"$f":"(N10+N25)/2","v":2.65},4.8,null,null,null,"Apr",4.1,9.3,4.0,5.8,null,"Mean: for 1/2 hourly and daily periods calculate mean of values across all operational combustion lines for the month"]
["May",30.0,{"$f":"(L11+L26)/2","v":2.65},7.2,10.0,{"$f":"(N11+N26)/2","v":2.6},4.45,null,null,null,"May",4.4,9.1,4.3,5.5]
["Jun",30.0,{"$f":"(L12+L27)/2","v":2.9},5.2,10.0,{"$f":"(N12+N27)/2","v":2.9},3.7,null,null,null,"Jun",5.0,8.7,5.0,6.3]
["Jul",30.0,{"$f":"(L13+L28)/2","v":3},9.05,10.0,{"$f":"(N13+N28)/2","v":3},4.25,null,null,null,"Jul",5.0,14.0,5.0,6.9,null,"Maximum: for 1/2 hourly and daily periods use the highest value across all operational combustion lines for the month"]
["Aug",30.0,{"$f":"(L14+L29)/2","v":3.25},16.5,10.0,{"$f":"(N14+N29)/2","v":3.25},5.5,null,null,null,"Aug",5.1,22.0,5.1,8.0]
["Sep",30.0,{"$f":"(L15+L30)/2","v":2.5},5.05,10.0,{"$f":"(N15+N30)/2","v":2.45},3.5,null,null,null,"Sep",3.6,7.2,3.5,4.9]
["Oct",30.0,{"$f":"(L16+L31)/2","v":3},11.8,10.0,{"$f":"(N16+N31)/2","v":2.95},4.1,null,null,null,"Oct",4.2,12.3,4.2,5.8]
["Nov",30.0,{"$f":"(L17+L32)/2","v":3.75},17.2,10.0,{"$f":"(N17+N32)/2","v":3.7},5.55,null,null,null,"Nov",5.9,17.2,5.8,8.4]
["Dec",30.0,4.45,{"$f":"(M18+M33)/2","v":8.25},10.0,{"$f":"(N18+N33)/2","v":4.45},5.5,null,null,null,"Dec",6.8,11.7,6.8,8.3]
[null,null,null,null,null,null,null,null,null,null,"Annual",{"$f":"AVERAGE(L7:L18)","v":4.55},{"$f":"MAX(M7:M18)","v":22},{"$f":"AVERAGE(N7:N18)","v":4.508333333},{"$f":"MAX(O7:O18)","v":8.4}]
[]
[null,null,null,null,null,null,null,null,null,{"$f":"+A6","v":2022},"mg/Nm3","Monthly 1/2 hourly mean","Monthly 1/2 hourly maximum","Monthly daily mean","Monthly daily maximum"]
[null,null,null,null,null,null,null,null,null,"A2","Jan",0.8,1.9,0.8,1.0]
[null,null,null,null,null,null,null,null,null,null,"Feb",0.9,1.6,0.8,1.2]
[null,null,null,null,null,null,null,null,null,null,"Mar",0.8,3.8,0.8,1.1]
[null,null,null,null,null,null,null,null,null,null,"Apr",1.3,5.4,1.3,3.8]
[null,null,null,null,null,null,null,null,null,null,"May",0.9,5.3,0.9,3.4]
[null,null,null,null,null,null,null,null,null,null,"Jun",0.8,1.7,0.8,1.1]
[null,null,null,null,null,null,null,null,null,null,"Jul",1.0,4.1,1.0,1.6]
[null,null,null,null,null,null,null,null,null,null,"Aug",1.4,11.0,1.4,3.0]
[null,null,null,null,null,null,null,null,null,null,"Sep",1.4,2.9,1.4,2.1]
[null,null,null,null,null,null,null,null,null,null,"Oct",1.8,11.3,1.7,2.4]
[null,null,null,null,null,null,null,null,null,null,"Nov",1.6,3.4,1.6,2.7]
[null,null,null,null,null,null,null,null,null,null,"Dec",2.1,4.8,2.1,2.7]
[null,null,null,null,null,null,null,null,null,null,"Annual",{"$f":"AVERAGE(L22:L33)","v":1.233333333},{"$f":"MAX(M22:M33)","v":11.3},{"$f":"AVERAGE(N22:N33)","v":1.216666667},{"$f":"MAX(O22:O33)","v":3.8}]
[]
[null,null,null,null,null,null,null,null,null,{"$f":"+A6","v":2022},"mg/Nm3","Monthly 1/2 hourly mean","Monthly 1/2 hourly maximum","Monthly daily mean","Monthly daily maximum"]
[null,null,null,null,null,null,null,null,null,"A3","Jan"]
[null,null,null,null,null,null,null,null,null,null,"Feb"]
[null,null,null,null,null,null,null,null,null,null,"Mar"]
[null,null,null,null,null,null,null,null,null,null,"Apr"]
[null,null,null,null,null,null,null,null,null,null,"May"]
[null,null,null,null,null,null,null,null,null,null,"Jun"]
[null,null,null,null,null,null,null,null,null,null,"Jul"]
[null,null,null,null,null,null,null,null,null,null,"Aug"]
[null,null,null,null,null,null,null,null,null,null,"Sep"]
[null,null,null,null,null,null,null,null,null,null,"Oct"]
[null,null,null,null,null,null,null,null,null,null,"Nov"]
["Comments :",null,null,null,null,null,null,null,null,null,"Dec"]
[null,null,null,null,null,null,null,null,null,null,"Annual",{"$f":"AVERAGE(L37:L48)","v":"#DIV/0!"},{"$f":"MAX(M37:M48)","v":0},{"$f":"AVERAGE(N37:N48)","v":"#DIV/0!"},{"$f":"MAX(O37:O48)","v":0}]
[]
[null,null,null,null,null,null,null,null,null,{"$f":"+A6","v":2022},"mg/Nm3","Monthly 1/2 hourly mean","Monthly 1/2 hourly maximum","Monthly daily mean","Monthly daily maximum"]
[null,null,null,null,null,null,null,null,null,"A4","Jan"]
[null,null,null,null,null,null,null,null,null,null,"Feb"]
[null,null,null,null,null,null,null,null,null,null,"Mar"]
[null,null,null,null,null,null,null,null,null,null,"Apr"]
[null,null,null,null,null,null,null,null,null,null,"May"]
[null,null,null,null,null,null,null,null,null,null,"Jun"]
[null,null,null,null,null,null,null,null,null,null,"Jul"]
[null,null,null,null,null,null,null,null,null,null,"Aug"]
[null,null,null,null,null,null,null,null,null,null,"Sep"]
[null,null,null,null,null,null,null,null,null,null,"Oct"]
[null,null,null,null,null,null,null,null,null,null,"Nov"]
[null,null,null,null,null,null,null,null,null,null,"Dec"]
[null,null,null,null,null,null,null,null,null,null,"Annual",{"$f":"AVERAGE(L52:L63)","v":"#DIV/0!"},{"$f":"MAX(M52:M63)","v":0},{"$f":"AVERAGE(N52:N63)","v":"#DIV/0!"},{"$f":"MAX(O52:O63)","v":0}]
[]
[null,null,null,null,null,null,null,null,null,{"$f":"+A6","v":2022},"mg/Nm3","Monthly 1/2 hourly mean","Monthly 1/2 hourly maximum","Monthly daily mean","Monthly daily maximum"]
[null,null,null,null,null,null,null,null,null,"A5","Jan"]
[null,null,null,null,null,null,null,null,null,null,"Feb"]
[null,null,null,null,null,null,null,null,null,null,"Mar"]
[null,null,null,null,null,null,null,null,null,null,"Apr"]
[null,null,null,null,null,null,null,null,null,null,"May"]
[null,null,null,null,null,null,null,null,null,null,"Jun"]
[null,null,null,null,null,null,null,null,null,null,"Jul"]
[null,null,null,null,null,null,null,null,null,null,"Aug"]
[null,null,null,null,null,null,null,null,null,null,"Sep"]
[null,null,null,null,null,null,null,null,null,null,"Oct"]
[null,null,null,null,null,null,null,null,null,null,"Nov"]
[null,null,null,null,null,null,null,null,null,null,"Dec"]
[null,null,null,null,null,null,null,null,null,null,"Annual",{"$f":"AVERAGE(L67:L78)","v":"#DIV/0!"},{"$f":"MAX(M67:M78)","v":0},{"$f":"AVERAGE(N67:N78)","v":"#DIV/0!"},{"$f":"MAX(O67:O78)","v":0}]

{"sheet":"CO 95% 10 min","index":21,"n_rows":79,"n_cols":19,"rows_kept":79,"cut":false,"hidden":false,"merged":[[21,10,33,10],[36,10,48,10],[47,0,47,7],[48,0,51,7],[51,10,63,10],[66,10,78,10],[3,18,7,20],[4,1,4,4],[4,5,4,7],[4,10,4,16],[6,10,18,10],[9,18,11,20],[12,18,15,20]]}
[{"$f":"+'Cover Page'!$B$29","v":"Annual Performance Report 2022"},null,null,null,{"$f":"+'Cover Page'!$B$33","v":"Newhaven Energy Recovery Facility\t\t\t\t\t\t\t"}]
[]
["Monitoring of Carbon Monoxide (10-minute avg)",null,null,null,"Whole Installation",null,null,"See  Notes in Cell S3",null,{"$f":"+A3","v":"Monitoring of Carbon Monoxide (10-minute avg)"},null,null,null,null,"Per Combustion Line",null,"Notes:",null,"Notes:"]
[null,null,null,null,null,null,null,null,null,null,null,null,null,null,null,null,null,null,"User to add logic to complete Whole installation, Table A5:H18. From the data in Per Combustion Line, Table K6:Q79, subject to No. of lines installed"]
["mg/Nm3","10-minute Reference Periods",null,null,null,"Daily Reference Periods"]
[{"$f":"+'Cover Page'!C39","v":2022},"95%ile 10-min avg CO ELV","95%ile 10-min avg maximum","Monthly CO 10-min avg mean","10-min avg maximum","Daily CO ELV","Monthly daily mean","Highest daily maximum",null,null,{"$f":"+A6","v":2022},"mg/Nm3","95%ile 10-min avg maximum","Monthly CO 10-min avg mean","10-min avg maximum","Monthly daily mean","Monthly daily maximum"]
["Jan",150.0,{"$f":"(M7+M22)/2","v":16.75},6.15,172.9,50.0,{"$f":"(P7+P22)/2","v":6.1},9.35,null,null,"A1","Jan",18.0,6.3,246.3,6.2,9.2]
["Feb",{"$f":"+B7","v":150},{"$f":"(M8+M23)/2","v":17.25},5.15,142,{"$f":"+F7","v":50},{"$f":"(P8+P23)/2","v":5.1},8.3,null,null,null,"Feb",20.4,5.1,227.7,5.0,8.0]
["Mar",150,{"$f":"(M9+M24)/2","v":14},5.55,204.6,50,{"$f":"(P9+P24)/2","v":5.5},8.65,null,null,null,"Mar",11.0,5.0,184.8,5.0,7.4,null,"Whole Installation table A5:H18:"]
["Apr",150,{"$f":"(M10+M25)/2","v":18.4},6.25,255.05,50,{"$f":"(P10+P25)/2","v":6.2},12.15,null,null,null,"Apr",19.3,6.2,209.4,6.1,12.1,null,"Mean: for 10-min and daily periods use average of all operational combustion lines."]
["May",150,{"$f":"(M11+M26)/2","v":12.2},4.9,306.5,50,{"$f":"(P11+P26)/2","v":4.85},8.4,null,null,null,"May",10.4,4.4,235.1,4.4,6.7]
["Jun",150,{"$f":"(M12+M27)/2","v":13.2},5.25,339.75,50,{"$f":"(P12+P27)/2","v":5.2},9.4,null,null,null,"Jun",11.4,4.6,136.9,4.6,7.4]
["Jul",150,{"$f":"(M13+M28)/2","v":12.15},3.9,139.9,50,{"$f":"(P13+P28)/2","v":3.85},7.25,null,null,null,"Jul",11.5,3.5,154.6,3.4,7.8,null,"Maximum: for 10-min and daily periods use the highest of all operational combustion lines in any month."]
["Aug",150,{"$f":"(M14+M29)/2","v":25},4.05,322.1,50,{"$f":"(P14+P29)/2","v":4},6.65,null,null,null,"Aug",38.0,4.1,426.5,4.1,7.1]
["Sep",150,{"$f":"(M15+M30)/2","v":13.05},4.35,560.45,50,{"$f":"(P15+P30)/2","v":4.35},9.05,null,null,null,"Sep",14.3,4.4,626.0,4.4,10.4]
["Oct",150,{"$f":"(M16+M31)/2","v":14.55},4.9,183.3,50,{"$f":"(P16+P31)/2","v":4.9},7.9,null,null,null,"Oct",15.6,4.5,177.3,4.5,7.7]
["Nov",150,{"$f":"(M17+M32)/2","v":14.1},5.25,142.65,50,{"$f":"(P17+P32)/2","v":5.3},8,null,null,null,"Nov",14.6,4.8,102.6,4.9,7.6]
["Dec",150,{"$f":"(M18+M33)/2","v":22.75},6.15,218.5,50,{"$f":"(P18+P33)/2","v":6.1},9.2,null,null,null,"Dec",32.3,6.7,250.4,6.7,10.2]
[null,null,null,null,null,null,null,null,null,null,null,"Annual",{"$f":"AVERAGE(M7:M18)","v":18.06666667},null,{"$f":"MAX(O7:O18)","v":626},{"$f":"AVERAGE(P7:P18)","v":4.941666667},{"$f":"MAX(Q7:Q18)","v":12.1}]
[]
[null,null,null,null,null,null,null,null,null,null,{"$f":"+A6","v":2022},"mg/Nm3","95%ile 10-min avg maximum","Monthly CO 10-min avg mean","10-min avg maximum","Monthly daily mean","Monthly daily maximum"]
[null,null,null,null,null,null,null,null,null,null,"A2","Jan",15.5,6.0,99.5,6.0,9.5]
[null,null,null,null,null,null,null,null,null,null,null,"Feb",14.1,5.2,56.3,5.2,8.6]
[null,null,null,null,null,null,null,null,null,null,null,"Mar",17.0,6.1,224.4,6.0,9.9]
[null,null,null,null,null,null,null,null,null,null,null,"Apr",17.5,6.3,300.7,6.3,12.2]
[null,null,null,null,null,null,null,null,null,null,null,"May",14.0,5.4,377.9,5.3,10.1]
[null,null,null,null,null,null,null,null,null,null,null,"Jun",15.0,5.9,542.6,5.8,11.4]
[null,null,null,null,null,null,null,null,null,null,null,"Jul",12.8,4.3,125.2,4.3,6.7]
[null,null,null,null,null,null,null,null,null,null,null,"Aug",12.0,4.0,217.7,3.9,6.2]
[null,null,null,null,null,null,null,null,null,null,null,"Sep",11.8,4.3,494.9,4.3,7.7]
[null,null,null,null,null,null,null,null,null,null,null,"Oct",13.5,5.3,189.3,5.3,8.1]
[null,null,null,null,null,null,null,null,null,null,null,"Nov",13.6,5.7,182.7,5.7,8.4]
[null,null,null,null,null,null,null,null,null,null,null,"Dec",13.2,5.6,186.6,5.5,8.2]
[null,null,null,null,null,null,null,null,null,null,null,"Annual",{"$f":"AVERAGE(M22:M33)","v":14.16666667},null,{"$f":"MAX(O22:O33)","v":542.6},{"$f":"AVERAGE(P22:P33)","v":5.3},{"$f":"MAX(Q22:Q33)","v":12.2}]
[]
[null,null,null,null,null,null,null,null,null,null,{"$f":"+A6","v":2022},"mg/Nm3","95%ile 10-min avg maximum","Monthly CO 10-min avg mean","10-min avg maximum","Monthly daily mean","Monthly daily maximum"]
[null,null,null,null,null,null,null,null,null,null,"A3","Jan"]
[null,null,null,null,null,null,null,null,null,null,null,"Feb"]
[null,null,null,null,null,null,null,null,null,null,null,"Mar"]
[null,null,null,null,null,null,null,null,null,null,null,"Apr"]
[null,null,null,null,null,null,null,null,null,null,null,"May"]
[null,null,null,null,null,null,null,null,null,null,null,"Jun"]
[null,null,null,null,null,null,null,null,null,null,null,"Jul"]
[null,null,null,null,null,null,null,null,null,null,null,"Aug"]
[null,null,null,null,null,null,null,null,null,null,null,"Sep"]
[null,null,null,null,null,null,null,null,null,null,null,"Oct"]
[null,null,null,null,null,null,null,null,null,null,null,"Nov"]
["Comments :",null,null,null,null,null,null,null,null,null,null,"Dec"]
["Environment Agency explanatory note: The 10-minute average ELV is based on the “95th percentile”. In this case this means that 95% of the 10 minute averages in the relevant 24-hour period (i.e. 137) must be below 150 mg/Nm3, and 5% (i.e. 7) are allowed to be any value above 150 mg/Nm3. Whilst we expect operators to minimise CO emissions at all times, it is perfectly acceptable for the value of the maximum 10-minute average to be above 150 mg/Nm3, provided the 95th percentile ELV has been met for that period. ",null,null,null,null,null,null,null,null,null,null,"Annual",{"$f":"AVERAGE(M37:M48)","v":"#DIV/0!"},null,{"$f":"MAX(O37:O48)","v":0},{"$f":"AVERAGE(P37:P48)","v":"#DIV/0!"},{"$f":"MAX(Q37:Q48)","v":0}]
[]
[null,null,null,null,null,null,null,null,null,null,{"$f":"+A6","v":2022},"mg/Nm3","95%ile 10-min avg maximum","Monthly CO 10-min avg mean","10-min avg maximum","Monthly daily mean","Monthly daily maximum"]
[null,null,null,null,null,null,null,null,null,null,"A4","Jan"]
[null,null,null,null,null,null,null,null,null,null,null,"Feb"]
[null,null,null,null,null,null,null,null,null,null,null,"Mar"]
[null,null,null,null,null,null,null,null,null,null,null,"Apr"]
[null,null,null,null,null,null,null,null,null,null,null,"May"]
[null,null,null,null,null,null,null,null,null,null,null,"Jun"]
[null,null,null,null,null,null,null,null,null,null,null,"Jul"]
[null,null,null,null,null,null,null,null,null,null,null,"Aug"]
[null,null,null,null,null,null,null,null,null,null,null,"Sep"]
[null,null,null,null,null,null,null,null,null,null,null,"Oct"]
[null,null,null,null,null,null,null,null,null,null,null,"Nov"]
[null,null,null,null,null,null,null,null,null,null,null,"Dec"]
[null,null,null,null,null,null,null,null,null,null,null,"Annual",{"$f":"AVERAGE(M52:M63)","v":"#DIV/0!"},null,{"$f":"MAX(O52:O63)","v":0},{"$f":"AVERAGE(P52:P63)","v":"#DIV/0!"},{"$f":"MAX(Q52:Q63)","v":0}]
[]
[null,null,null,null,null,null,null,null,null,null,{"$f":"+A6","v":2022},"mg/Nm3","95%ile 10-min avg maximum","Monthly CO 10-min avg mean","10-min avg maximum","Monthly daily mean","Monthly daily maximum"]
[null,null,null,null,null,null,null,null,null,null,"A5","Jan"]
[null,null,null,null,null,null,null,null,null,null,null,"Feb"]
[null,null,null,null,null,null,null,null,null,null,null,"Mar"]
[null,null,null,null,null,null,null,null,null,null,null,"Apr"]
[null,null,null,null,null,null,null,null,null,null,null,"May"]
[null,null,null,null,null,null,null,null,null,null,null,"Jun"]
[null,null,null,null,null,null,null,null,null,null,null,"Jul"]
[null,null,null,null,null,null,null,null,null,null,null,"Aug"]
[null,null,null,null,null,null,null,null,null,null,null,"Sep"]
[null,null,null,null,null,null,null,null,null,null,null,"Oct"]
[null,null,null,null,null,null,null,null,null,null,null,"Nov"]
[null,null,null,null,null,null,null,null,null,null,null,"Dec"]
[null,null,null,null,null,null,null,null,null,null,null,"Annual",{"$f":"AVERAGE(M67:M78)","v":"#DIV/0!"},null,{"$f":"MAX(O67:O78)","v":0},{"$f":"AVERAGE(P67:P78)","v":"#DIV/0!"},{"$f":"MAX(Q67:Q78)","v":0}]

{"sheet":"NH3","index":22,"n_rows":79,"n_cols":17,"rows_kept":79,"cut":false,"hidden":false,"merged":[[21,9,33,9],[36,9,48,9],[47,0,47,6],[48,0,51,6],[51,9,63,9],[66,9,78,9],[3,16,7,18],[4,1,4,3],[4,4,4,6],[4,9,4,14],[6,9,18,9],[9,16,11,18],[12,16,15,18]]}
[{"$f":"+'Cover Page'!$B$29","v":"Annual Performance Report 2022"},null,null,null,{"$f":"+'Cover Page'!$B$33","v":"Newhaven Energy Recovery Facility\t\t\t\t\t\t\t"}]
[]
["Monitoring of Ammnonia emissions ",null,null,"Whole Installation",null,null,"See  Notes in Cell Q3",null,null,{"$f":"+A3","v":"Monitoring of Ammnonia emissions "},null,null,null,"Per Combustion Line",null,null,"Notes:"]
[null,null,null,null,null,null,null,null,null,null,null,null,null,null,null,null,"User to add logic to complete Whole installation, Table A5:G18. From the data in Per Combustion Line, Table J6:O79, subject to No. of lines installed"]
["mg/Nm3","1/2 Hourly Reference Periods",null,null,"Daily Reference Periods"]
[{"$f":"+'Cover Page'!C39","v":2022},"1/2 hourly NH3 ELV","Monthly 1/2 hourly mean","Highest 1/2 hourly maximum","Daily NH3 ELV","Monthly daily mean","Highest daily maximum",null,null,{"$f":"+A6","v":2022},"mg/Nm3","Monthly 1/2 hourly mean","Monthly 1/2 hourly maximum","Monthly daily mean","Monthly daily maximum"]
["Jan",0.0,{"$f":"(L7+L22)/2","v":0.4},1.2,15.0,{"$f":"(N7+N22)/2","v":0.35},0.55,null,null,"A1","Jan",0.4,1.5,0.4,0.6]
["Feb",{"$f":"+B7","v":0},{"$f":"(L8+L23)/2","v":0.35},1,{"$f":"+E7","v":15},{"$f":"(N8+N23)/2","v":0.3},0.6,null,null,null,"Feb",0.4,0.9,0.3,0.5]
["Mar",0,{"$f":"(L9+L24)/2","v":0.4},4.45,15,{"$f":"(N9+N24)/2","v":0.35},0.85,null,null,null,"Mar",0.4,8.1,0.4,1.2,null,"Whole Installation table A5:G18:"]
["Apr",0,{"$f":"(L10+L25)/2","v":0.35},1.8,15,{"$f":"(N10+N25)/2","v":0.3},0.5,null,null,null,"Apr",0.4,2.8,0.3,0.5,null,"Mean: for 1/2 hourly and daily periods calculate mean of values across all operational combustion lines for the month"]
["May",0,{"$f":"(L11+L26)/2","v":0.35},1.1,15,{"$f":"(N11+N26)/2","v":0.25},0.45,null,null,null,"May",0.4,1.4,0.3,0.5]
["Jun",0,{"$f":"(L12+L27)/2","v":0.3},2.25,15,{"$f":"(N12+N27)/2","v":0.25},0.65,null,null,null,"Jun",0.4,2.8,0.3,0.8]
["Jul",0,{"$f":"(L13+L28)/2","v":0.3},4.2,15,{"$f":"(N13+N28)/2","v":0.25},0.65,null,null,null,"Jul",0.3,3.2,0.3,0.4,null,"Maximum: for 1/2 hourly and daily periods use the highest value across all operational combustion lines for the month"]
["Aug",0,{"$f":"(L14+L29)/2","v":0.35},3,15,{"$f":"(N14+N29)/2","v":0.3},0.75,null,null,null,"Aug",0.4,4.3,0.4,1.1]
["Sep",0,{"$f":"(L15+L30)/2","v":0.35},2.75,15,{"$f":"(N15+N30)/2","v":0.35},0.55,null,null,null,"Sep",0.4,1.9,0.4,0.5]
["Oct",0,{"$f":"(L16+L31)/2","v":0.35},3,15,{"$f":"(N16+N31)/2","v":0.35},0.7,null,null,null,"Oct",0.4,4.6,0.4,0.9]
["Nov",0,{"$f":"(L17+L32)/2","v":0.4},2.05,15,{"$f":"(N17+N32)/2","v":0.3},0.6,null,null,null,"Nov",0.4,1.7,0.3,0.6]
["Dec",0,{"$f":"(L18+L33)/2","v":0.4},5.15,15,{"$f":"(N18+N33)/2","v":0.35},0.9,null,null,null,"Dec",0.5,1.5,0.4,0.8]
[null,null,null,null,null,null,null,null,null,null,"Annual",{"$f":"AVERAGE(L7:L18)","v":0.4},{"$f":"MAX(M7:M18)","v":8.1},{"$f":"AVERAGE(N7:N18)","v":0.35},{"$f":"MAX(O7:O18)","v":1.2}]
[]
[null,null,null,null,null,null,null,null,null,{"$f":"+A6","v":2022},"mg/Nm3","Monthly 1/2 hourly mean","Monthly 1/2 hourly maximum","Monthly daily mean","Monthly daily maximum"]
[null,null,null,null,null,null,null,null,null,"A2","Jan",0.4,0.9,0.3,0.5]
[null,null,null,null,null,null,null,null,null,null,"Feb",0.3,1.1,0.3,0.7]
[null,null,null,null,null,null,null,null,null,null,"Mar",0.4,0.8,0.3,0.5]
[null,null,null,null,null,null,null,null,null,null,"Apr",0.3,0.8,0.3,0.5]
[null,null,null,null,null,null,null,null,null,null,"May",0.3,0.8,0.2,0.4]
[null,null,null,null,null,null,null,null,null,null,"Jun",0.2,1.7,0.2,0.5]
[null,null,null,null,null,null,null,null,null,null,"Jul",0.3,5.2,0.2,0.9]
[null,null,null,null,null,null,null,null,null,null,"Aug",0.3,1.7,0.2,0.4]
[null,null,null,null,null,null,null,null,null,null,"Sep",0.3,3.6,0.3,0.6]
[null,null,null,null,null,null,null,null,null,null,"Oct",0.3,1.4,0.3,0.5]
[null,null,null,null,null,null,null,null,null,null,"Nov",0.4,2.4,0.3,0.6]
[null,null,null,null,null,null,null,null,null,null,"Dec",0.3,8.8,0.3,1.0]
[null,null,null,null,null,null,null,null,null,null,"Annual",{"$f":"AVERAGE(L22:L33)","v":0.3166666667},{"$f":"MAX(M22:M33)","v":8.8},{"$f":"AVERAGE(N22:N33)","v":0.2666666667},{"$f":"MAX(O22:O33)","v":1}]
[]
[null,null,null,null,null,null,null,null,null,{"$f":"+A6","v":2022},"mg/Nm3","Monthly 1/2 hourly mean","Monthly 1/2 hourly maximum","Monthly daily mean","Monthly daily maximum"]
[null,null,null,null,null,null,null,null,null,"A3","Jan"]
[null,null,null,null,null,null,null,null,null,null,"Feb"]
[null,null,null,null,null,null,null,null,null,null,"Mar"]
[null,null,null,null,null,null,null,null,null,null,"Apr"]
[null,null,null,null,null,null,null,null,null,null,"May"]
[null,null,null,null,null,null,null,null,null,null,"Jun"]
[null,null,null,null,null,null,null,null,null,null,"Jul"]
[null,null,null,null,null,null,null,null,null,null,"Aug"]
[null,null,null,null,null,null,null,null,null,null,"Sep"]
[null,null,null,null,null,null,null,null,null,null,"Oct"]
[null,null,null,null,null,null,null,null,null,null,"Nov"]
["Comments :",null,null,null,null,null,null,null,null,null,"Dec"]
["An indicated ELV value of zero in the table above means that no ammonia limit is set in the permit.  ",null,null,null,null,null,null,null,null,null,"Annual",{"$f":"AVERAGE(L37:L48)","v":"#DIV/0!"},{"$f":"MAX(M37:M48)","v":0},{"$f":"AVERAGE(N37:N48)","v":"#DIV/0!"},{"$f":"MAX(O37:O48)","v":0}]
[]
[null,null,null,null,null,null,null,null,null,{"$f":"+A6","v":2022},"mg/Nm3","Monthly 1/2 hourly mean","Monthly 1/2 hourly maximum","Monthly daily mean","Monthly daily maximum"]
[null,null,null,null,null,null,null,null,null,"A4","Jan"]
[null,null,null,null,null,null,null,null,null,null,"Feb"]
[null,null,null,null,null,null,null,null,null,null,"Mar"]
[null,null,null,null,null,null,null,null,null,null,"Apr"]
[null,null,null,null,null,null,null,null,null,null,"May"]
[null,null,null,null,null,null,null,null,null,null,"Jun"]
[null,null,null,null,null,null,null,null,null,null,"Jul"]
[null,null,null,null,null,null,null,null,null,null,"Aug"]
[null,null,null,null,null,null,null,null,null,null,"Sep"]
[null,null,null,null,null,null,null,null,null,null,"Oct"]
[null,null,null,null,null,null,null,null,null,null,"Nov"]
[null,null,null,null,null,null,null,null,null,null,"Dec"]
[null,null,null,null,null,null,null,null,null,null,"Annual",{"$f":"AVERAGE(L52:L63)","v":"#DIV/0!"},{"$f":"MAX(M52:M63)","v":0},{"$f":"AVERAGE(N52:N63)","v":"#DIV/0!"},{"$f":"MAX(O52:O63)","v":0}]
[]
[null,null,null,null,null,null,null,null,null,{"$f":"+A6","v":2022},"mg/Nm3","Monthly 1/2 hourly mean","Monthly 1/2 hourly maximum","Monthly daily mean","Monthly daily maximum"]
[null,null,null,null,null,null,null,null,null,"A5","Jan"]
[null,null,null,null,null,null,null,null,null,null,"Feb"]
[null,null,null,null,null,null,null,null,null,null,"Mar"]
[null,null,null,null,null,null,null,null,null,null,"Apr"]
[null,null,null,null,null,null,null,null,null,null,"May"]
[null,null,null,null,null,null,null,null,null,null,"Jun"]
[null,null,null,null,null,null,null,null,null,null,"Jul"]
[null,null,null,null,null,null,null,null,null,null,"Aug"]
[null,null,null,null,null,null,null,null,null,null,"Sep"]
[null,null,null,null,null,null,null,null,null,null,"Oct"]
[null,null,null,null,null,null,null,null,null,null,"Nov"]
[null,null,null,null,null,null,null,null,null,null,"Dec"]
[null,null,null,null,null,null,null,null,null,null,"Annual",{"$f":"AVERAGE(L67:L78)","v":"#DIV/0!"},{"$f":"MAX(M67:M78)","v":0},{"$f":"AVERAGE(N67:N78)","v":"#DIV/0!"},{"$f":"MAX(O67:O78)","v":0}]